{"text_format":"1","workbook":"xlsx","n_sheets":6,"sheets":["Ark1","Version","Brugerark","Dataark","Dataark2","Vejledning"],"not_rendered":{"charts":0,"images":1,"macros":1,"external_links":0,"defined_names":7,"comments":0,"pivot_tables":0},"unopened":[],"bounds":{"document_bytes":16777216,"sheet_cells":100000,"rows_first":2000,"rows_last":500,"rows_between":2000,"halvings":0,"cell_chars":16384,"cell_head_chars":4096},"cells_cut":0,"cells_raw":0,"read":"whole","date_system":"1900"}

{"sheet":"Ark1","index":0,"n_rows":228,"n_cols":62,"rows_kept":228,"cut":false,"hidden":false,"merged":[]}
[null,"Valgfrie eller obligatoriske roller med valgfrie og obligatoriske signaturer"]
[]
[null,"VV = Valgfrie roller med valgfri signatur"]
[null,"VO = Valgfrie roller med obligatorisk signatur"]
[null,"OO = Obligatorisk rolle med obligatorisk signatur"]
[null,"OV = Obligatorisk rolle med valgfri signatur"]
[]
["Dokumenttyper i fast ejendom","Fuldmagtshaver","Udtrædende fuldmagtshaver","Fuldmagtsgiver","Sælger/overdrager","Køber/erhverver","Kreditor","Udtrædende kreditor","Debitor","Udtrædende debitor","Tiltrædende adkomsthaver","Kautionist","Pantsætter","Meddebitor","Ægtefælle","Underpanthaver","Meddelelseshaver","Udtrædende meddelelseshaver","Myndighed","Bobestyrer","Ejer","Kurator","Medhjælper","Påtaleberettiget","Udtrædende påtaleberettiget","Landinspektør","Brugspanthaver","Anmoder","Bortforpagter","Forpagter","Udlejer","Lejer","Efterlevende ægtefælle","Anden arving","Boet efter afdøde","Værge","Disponent"]
["1. EndeligtSkøde "," ",null," ","oox","oox",null,null,null,null,null,null,null,null,"vo",null,null,null,"vo","vo","vo","vo",null,"vo",null,"vo",null,"vv",null,null,null,null," ",null,"vo","vo"]
["2. EndeligtSkødeMageskifte"," "," "," ","oo","oo",null,null,null,null,null,null,null,null,"vo",null,null,null,"vo","vo","vo","vo",null,null,null,null,null,"vv",null,null,null,null," "," "," ","vo"]
["3. BetingetSkøde","vvx",null,"vox","oox","oox",null,null,null,null,null,null,null,null,"vo",null,null,null,"vo","vo","vo","vo",null,"vo",null,"vo",null,"vv",null,null,null,null," ",null,"vo","vo"]
["5. Bodeling",null,null,null,"oo","oo",null,null,null,null,null,null,null,null,null,null,null,null,"vo","vo","vo","vo",null,"vo",null,null,null,"vv",null,null,null,null,null,null,"vo","vo"]
["6. AndenAdkomst"," ",null," ","ov","ov",null,null,null,null,null,null,null,null,"vo",null,null,null,"vo","vo","vo","vo",null,"vo",null,null,null,"oo",null,null,null,null," ","vo","vo","vo"]
["7. PantebrevFastEjendom","vv"," ","vo",null,null,"ov",null,"oo",null,"vo","vo","vo","vo","vo",null,"vv",null,"vo","vo"," ","vo",null,"vo",null,null,null,"vv",null,null,null,null," ",null,"vo","vo"]
["11. EjerpantebrevFastEjendom",null," ","vo",null,null,"ov",null,"oo",null,"vo","vo","vo","vo","vo","vv","vv",null,"vo","vo",null,"vo",null,"vo",null,null,null,"vv",null,null,null,null,null,null,"vo","vo"]
["19. UnderpantFastEjendom",null,null,null,null,null,"oo",null,"vv",null,null," ",null,null," ","ov"," ",null,"vv","vo",null,"vo",null,null,null,null,null,"vv",null,null,null,null,null,null,"vo","vo"]
["23. Realkreditpantebrev ",null," ",null,null,null,"ov",null,"oo",null,"vo","vo","vo","vo","vo",null,null,null,"vo","vo",null,"vo",null,"vo",null,null,null,"vv",null,null,null,null,null,null,"vo","vo"]
["24. Indekspantebrev",null," ",null,null,null,"ov",null,"oo",null,"vo","vo","vo","vo","vo",null,"vv",null,"vo","vo",null,"vo",null,"vo",null,null,null,"vv",null,null,null,null,null,null,"vo","vo"]
["25. SkadesløsbrevFastEjendom",null,null,null,null,null,"ov",null,"oo",null,"vo","vo","vo","vo","vo",null,"vv",null,"vo","vo",null,"vo",null,"vo",null,null,null,"vv",null,null,null,null,null,null,"vo","vo"]
["32. UdlægFastEjendom",null,null,null,null,null,"ovx",null,"ovx",null,"vox"," ","vox",null,null,null,null,null,"oo","vo",null,"vo",null,null,null,null,null,"vv",null,null,null,null,null,null,null,"vo"]
["35. ArrestFastEjendom",null,null,null,null,null,"ov",null,"ov",null,"vv",null,"vo",null,null,null,null,null,"oo","vo",null,"vo",null,null,null,null,null,"vv",null,null,null,null,null,null,null,"vo"]
["38. AndenHæftelseFastEjendom",null,null,null,null,null,"oox",null,"oox",null,"vox","vox","vox",null,"vo","vv","vv",null,"vo","vo",null,"vo",null,"vo",null,null,null,"oo",null,null,null,null,null,null,"vo","vo"]
["40. Samejeoverenskomst "," ",null,null," "," ",null,null,null,null,null,null,null,null,null,null,null,null,"vv","vo","oo","vo",null,"ov",null,null,null,"vv",null,null,null,null,null,null,"vo","vo"]
["41. Vedtægter",null,null," ",null,null,null,null,null,null,null,null,null,null,null,null,null,null,"vo","vo","vv","vo",null,"ov",null,null,null,"oo",null,null,null,null,null,null,"vo","vo"]
["46. SalgsOgPantsætningsforbud "," ",null," ",null,null,"vv",null,"vv",null,null,null,null,null,null,null,null,null,"vv","vo","oo","vo",null,"ov",null,null,null,"vv",null,null,null,null,null,null,"vo","vo"]
["47. Lejekontrakt"," ",null," ",null,null,null,null,null,null," ",null,null,null,"vv",null,null,null,"vo","vo","vo","vo",null,"ov",null,"vv",null,"vv",null,null,"oo","oo",null,null,"vo","vo"]
["48. Forpagtningskontrakt"," ",null," ",null,null,null,null,null,null," ",null,null,null,"vv",null,null,null,"vo","vo","vo","vo",null,"ov",null,"vv",null,"vv","oo","oo",null,null,null,null,"vo","vo"]
["50. Servitut "," ",null," ",null,null,null,null,null,null,null,null,null,null," ",null,null,null,"vo","vo","oo","vo",null,"ov",null,"vv",null,"oo",null,null,null,null,null,null,"vo","vo"]
["51. EndeligIndførselAdkomst ",null,null,null,"oo","vv",null,null,null,null,null,null,null,null,"vv",null,null,null,"vo","vo","vo","vo",null,null,null,null,null,"vo",null,null,null,null," "," ","vo","vo"]
["52. RespektAdkomst ",null,null,null,"vv","oo",null,null,null,null,null,null,null,null,"vv",null,null,null,"vv","vo",null,"vo",null,null,null,null,null,"vo",null,null,null,null,null,null,"vo","vo"]
["54. PåtegningAdkomst ",null,null,null,"vo","oo",null,null,null,null,null,null,null,null,"vv",null,null,null,"vo","vo","vo","vo"," ","vo",null,null,null,"vo",null,null,null,null,null,"vo","vo","vo"]
["55. AflysningBetingetSkøde ",null,null,null,"oo","oo",null,null,null,null,null,null,null,null,"vo",null,null,null,"vv","vo"," ","vo",null,"vo",null,null,null,"vv",null,null,null,null,null,null,"vo","vo"]
["56. RespektHæftelseFastEjendom",null,null,null,null,null,"oo",null,null,null,null,"vv",null,null,null,"vo",null,null,"vv","vo",null,"vo",null,null,null,null,null,"vv",null,null,null,null,null,null,"vo","vo"]
["60. TransportHæftelseFastEjendom",null,null,null,null,null,"ov","vo","vv",null,null,null,null,null,null,"vo",null,null,"vv","vo",null,"vo",null,null,null,null,null,"vv",null,null,null,null,null,null,"vo","vo"]
["64. DebitorskifteFastEjendom",null,null,null,null,null,"oo",null,"vo","vv","vo","vo","vo",null,"vv","vo"," ",null,"vv","vo",null,"vo",null,null,null,null,null,"vv",null,null,null,null,null,null,"vo","vo"]
["68. NyMeddelelseshaverFastEjendom"," ",null," ",null,null,"oo",null,null,null,null," "," ",null,null,null,"vv","vv","vv","vo",null,"vo",null,null,null,null,null,"vv",null,null,null,null,null,null,"vo","vo"]
["72. NyFuldmagtshaverHæftelseFastEjendom","vv","vv","vo",null,null,"oo",null," ",null,null,null,null,null,null,"vo",null,null,"vv","vo",null,"vo",null,null,null,null,null,"vv",null,null,null,null,null,null,"vo","vo"]
["76. VilkårsændringHæftelseFastEjendom",null,null,null,null,null,"oo",null,"oo",null,"vo","vo","vo",null,null,"vo",null,null,"vv","vo",null,"vo",null,"vo",null,null,null,"vv",null,null,null,null,null,null,"vo","vo"]
["80. PåtegningHæftelseFastEjendom",null,"vv","vo",null,null,"oo",null,"oo",null,"vo",null,"vo",null,"vv","vo","vv","vv","vv","vo",null,"vo",null,"vo",null,null,null,"vv",null,null,null,null,null,null,"vo","vo"]
["84. ForhøjelseFastEjendom",null,null,null,null,null,null,null,"oo",null,"vo","vo","vo",null,"vo","vv",null,null,"vv","vo",null,"vo",null,"vo",null,null,null,"vv",null,null,null,null,null,null,"vo","vo"]
["88. UdvidelseHæftelseFastEjendom",null,null,null,null,null,null,null,"oo",null,"vo"," ","vo",null,"vo","vv",null,null,"vv","vo",null,"vo",null,"vo",null,null,null,"vv",null,null,null,null,null,null,"vo","vo"]
["92. NedlysningFastEjendom",null,null,null,null,null,"oo",null,null,null,null,"vo",null,null,null,"vo",null,null,"vv","vo",null,"vo",null,null,null,null,null,"vv",null,null,null,null,null,null,"vo","vo"]
["96. RelaksationHæftelseFastEjendom",null,null,null,null,null,"oo",null,null,null,null,"vo",null,null,null,"vo",null,null,"vv","vo",null,"vo",null,null,null,null,null,"vv",null,null,null,null,null,null,"vo","vo"]
["100. AflysningHæftelseFastEjendom",null,null,null,null,null,"oo",null,"vv",null,null,"vo",null,null,null,"vo",null,null,"vv","vo"," ","vo",null,null,null,null,null,"vv",null,null,null,null,null,null,"vo","vo"]
["104. RespektServitut ",null,null,null,null,null,null,null,null,null,null,null,null,null,null,null,null,null,"vo","vo","vv","vo",null,"oo",null,null,null,"vv",null,null,null,null,null,null,"vo","vo"]
["105. NyPåtaleberettiget ",null,null,null,null,null,null,null,null,null,null,null,null,null,null,null,null,null,"vo","vo","vo","vo",null,"vv","vo",null,null,"oo",null,null,null,null,null,null,"vo","vo"]
["106. PåtegningServitut",null,null,null,null,null,null,null,null,null,null,null,null,null,null,null,null,null,"vo","vo","vv","vo",null,"vo","vo","vo",null,"oo","vv","vv","vv","vv",null,null,"vo","vo"]
["107. RelaksationServitut ",null,null,null,null,null,null,null,null,null,null,null,null,null,null,null,null,null,"vo","vo","vv","vo",null,"oo",null,null,null,"vv","vv","vv","vv","vv",null,null,"vo","vo"]
["108. AflysningServitut ",null,null,null,null,null,null,null,null,null,null,null,null,null,null,null,null,null,"vo","vo","vv","vo",null,"oo",null,null,null,"vv","vv","vv","vv","vv",null,null,"vo","vo"]
["109. VielsesattestRådighedsindskrænkende ",null,null,null,null,null,null,null,null,null,null,null,null,null,"ov",null,null,null,"vv","vo"," ","vo",null,null,null,null,null,"oo",null,null,null,null,null,null,null,"vo"]
["110. Tinglysningslovens§20",null,null,null,null,null,"vv",null,"vv",null,null,null,null,null,null,null,null,null,"vv","vo",null,"vo",null,"vv",null,null,null,"oo",null,null,null,null,null,null,null,"vo","vv"]
["112. Ekspropriation",null,null,null,null,null,null,null,null,null,null,null,null,null,null,null,null,null,"oo","vo",null,"vo",null,null,null,null,null,"vv",null,null,null,null,null,null,null,"vo"]
["113. Jordfordeling Foreløbig",null,null,null,null,null,null,null,null,null,null,null,null,null,null,null,null,null,"oo","vo",null,"vo",null,null,null,null,null,"vv",null,null,null,null,null,null,null,"vo"]
["114. Jordfordeling Endelig ",null,null,null,null,null,null,null,null,null,null,null,null,null,null,null,null,null,"oo","vo",null,"vo",null,null,null,null,null,"vv",null,null,null,null,null,null,null,"vo"]
["115. ÆgtepagtAdkomst",null,null,null,"oo","oo",null,null,null,null,null,null,null,null,null,null,null,null,"vv","vo",null,"vo",null,"vo",null,null,null,"vv",null,null,null,null,null,null,null,"vo"]
["117.  Auktionsskøde",null,null,null,null,"oox",null,null,null,null,null,null,null,null,null,null,null,null,"oox","vo",null,"vo",null,"vo",null,null,null,"vv",null,null,null,null,null,null,null,"vo"]
["118. Skifteretsattest ",null,null,null,null,null,null,null,null,null,null,null,null,null,null,null,null,null,"ov",null,"oox",null,null,"vo",null,null,null,"oo",null,null,null,null,"vox","vox","vo","vo"]
["119. Afgiftsgodtgørelse",null,null,null,null,null,null,null,null,null,null,null,null,null,null,null,null,null,"vv","vo"," ","vo",null,null,null,null,null,"oo",null,null,null,null," "," "," ","vo"]
["120. ÆgtepagtSæreje ",null,null,null,null,null,null,null,null,null,null,null,null,null,null,null,null,null,"vv","vo","ov","vo",null,null,null,null,null,"oo",null,null,null,null,null,null,null,"vo"]
["121. Ejerpant",null,null,null,null,null,null,null,null,null,null,null,null,null,null,null,null,null,"vv","vo","oo","vo",null,"vo",null,null,null,"vv",null,null,null,null,null,null,null,"vo"]
["122. MeddelelseBobestyrerFastEjendom",null,null,null,null,null,null,null,null,null,null,null,null,null,null,null,null,null,"oo","ov","ov","vo",null,null,null,null,null,"vv",null,null,null,null,null,null,null,"vo"]
["125. MeddelelseDødsfaldFastEjendom",null,null,null,null,null,null,null,null,null,null,null,null,null,null,null,null,null,"oo","vo","ov","vo",null,null,null,null,null,"vv",null,null,null,null,null,null,null,"vo"]
["128. MeddelelseGældssaneringFastEjendom",null,null,null,null,null,null,null,null,null,null,null,null,null,null,null,null,null,"ov ","vo","ov","vo","ov",null,null,null,null,"oo",null,null,null,null,null,null,null,"vo"]
["131. MeddelelseKonkursFastEjendom",null,null,null,null,null,null,null,null,null,null,null,null,null,null,null,null,null,"oo","vo","ov","ov",null,null,null,null,null,"vv",null,null,null,null,null,null,null,"vo"]
["134. MeddelelseRådighedsfratagelseKonkurslovenFastEjendom",null,null,null,null,null,null,null,null,null,null,null,null,null,null,null,null,null,"oo","vo","ov","vo",null,null,null,null,null,"vv",null,null,null,null,null,null,null,"vo"]
["137. MeddelelseKonfiskationFastEjendom",null,null,null,null,null,null,null,null,null,null,null,null,null,null,null,null,null,"oo","vo","ov","vo",null,null,null,null,null,"vv",null,null,null,null,null,null,null,"vo"]
["140. MeddelelseTvangsakkordFastEjendom",null,null,null,null,null,null,null,null,null,null,null,null,null,null,null,null,null,"ov","vo","ov","vo","ov",null,null,null,null,"oo",null,null,null,null,null,null,null,"vo"]
["143. MeddelelseTvangsauktion ",null,null,null,null,null,null,null,null,null,null,null,null,null,null,null,null,null,"oo","vo","ov","vo"," ",null,null,null,null,"vv",null,null,null,null,null,null,null,"vo"]
["146. KæremålFastEjendom",null,null,null,null,null,null,null,null,null,null,null,null,null,null,null,null,null,"vv","vo"," ","vo",null,null,null,null,null,"oo",null,null,null,null,null,null,null,"vo"]
["150. StævningFastEjendom",null,null,null,null,null,null,null,null,null,null,null,null,null,null,null,null,null,"vo","vo",null,"vo",null,null,null,null,null,"oo",null,null,null,null,null,null,null,"vo"]
["151. MeddelelseBrugeligPant",null,null,null,null,null,"vo",null,null,null,null,null,null,null,null,null,null,null,"ov","vo","ov","vo",null,null,null,null,"ov","oo",null,null,null,null,null,null,null,"vo"]
["152. MeddelelseBeslaglæggelseFastEjendom",null,null,null,null,null,null,null,null,null,null,null,null,null,null,null,null,null,"oo","vo",null,"vo",null,null,null,null,null,"vv",null,null,null,null,null,null,null,"vo"]
["159. MeddelelseRådighedsfratagelseSkiftelovenFastEjendom",null,null,null,null,null,null,null,null,null,null,null,null,null,null,null,null,null,"oo","vo","ov","vo",null,null,null,null,null,"vv",null,null,null,null,null,null,null,"vo"]
["163. IndkaldelseEjendomsdom",null,null,null,null,null,null,null,null,null,null,null,null,null,null,null,null,null,"oo                      ","vo"," ","vo"," ",null,null,null,null,"vv",null,null,null,null,null,null,null,"vo"]
["164. PåtegningMeddelelseFastEjendom",null,null,null,null,null,null,null,null,null,null,null,null,null,null,null,null,null,"vo","vo","vv","vo",null,null,null,null,null,"oo",null,null,null,null,null,null,null,"vo"]
["168. AflysningMeddelelseFastEjendom",null,null,null,null,null,null,null,null,null,null,null,null,null,"vo",null,null,null,"vo","vo",null,"vo",null,null,null,null,null,"oo",null,null,null,null,null,null,null,"vo"]
["116. AdkomstEjendomsdom",null,null,null,null,null,null,null,null,null,null,null,null,null,null,null,null,null,"ov","vo","ov","vo",null,"vo",null,null,null,"oo",null,null,null,null,null,null,null,"vo"]
["173. IndkaldelseMortifikationFastEjendom",null,null,null,null,null,null,null,null,null,null,null,null,null,null,null,null,null,"oo                      ","vo",null,"vo",null,null,null,null,null,"vv",null,null,null,null,null,null,null,"vo"]
["177. MeddelelseMortifikationFastEjendom",null,null,null,null,null,null,null,null,null,null,null,null,null,null,null,null,null,"vv","vo",null,"vo",null,null,null,null,null,"oo",null,null,null,null,null,null,null,"vo"]
["181. UnderbladFastEjendom",null,null,null,null,null,null,null,null,null,null,null,null,null,null,null,null,null,"vv","vo","ov","vo",null,null,null,"vv",null,"oo",null,null,null,null,null,null,null,"vo"]
["182. Servituterklæring ",null,null,null,null,null,null,null,null,null,null,null,null,null,null,null,null,null,"vv","vo"," ","vo",null,null,null,"oo",null,"vv",null,null,null,null,null,null,null,"vo"]
["183. Uskadelighedsattest",null,null,null,null,null,null,null,null,null,null,null,null,null,null,null,null,null,"vv","vo",null,"vo",null,null,null,"oo",null,"vv",null,null,null,null,null,null,null,"vo"]
["184. Dommerattest",null,null,null,null,null,null,null,null,null,null,null,null,null,null,null,null,null,"vv","vo",null,"vo",null,null,null,null,null,"oo",null,null,null,null,null,null,null,"vo"]
["185. MatrikulærÆndring ",null,null,null,null,null,null,null,null,null,null,null,null,null,null,null,null,null,"oo","vo",null,"vo",null,null,null,"vv",null,"vv",null,null,null,null,null,null,null,"vo"]
["186. NyBygningLejetGrund",null,null,null,null,null,null,null,null,null,null,null,null,null,null,null,null,null,"vv","vo","ov","vo",null,null,null,"vv",null,"oo",null,null,null,null,null,null,null,"vo"]
["187. Afgiftsberigtigelse",null,null,null,null,null,null,null,null,null,null,null,null,null,null,null,null,null,"oo                    "]
["199. BerigtigelseFastEjendom - UDGÅR",null,null,null,null,null,null,null,null,null,null,null,null,null,null,null,null,null,"vv","vo",null,"vo",null,null,null,null,null,"vv",null,null,null,null,null,null,null,"vo"]
["203. TinglysningHævd",null,null,null,null,"ov",null,null,null,null,null,null,null,null,null,null,null,null,"vv","vo",null,"vo",null,"vo",null,null,null,"oo",null,null,null,null,null,null,null,"vo"]
["207. BodelingBetinget ","vv",null,"vo","oo","oo",null,null,null,null,null,null,null,null,null,null,null,null,"vo","vo",null,"vo",null,"vo",null,null,null,"vv",null,null,null,null,null,null,"vo","vo"]
["208. Ekspropriation Foreløbig ",null,null,null,null,null,null,null,null,null,null,null,null,null,null,null,null,null,"oo","vo"," ","vo",null,null,null,null,null,"vv",null,null,null,null,null,null,null,"vo"]
["209. EfterbetalingTinglysningsafgift",null,null,null,null,null,null,null,null,null,null,null,null,null,null,null,null,null,null,null,null,null,null,null,null,null,null,"oo"]
["210. TinglysningVærgemål",null,null,null,null,null,null,null,null,null,null,null,null,null,null,null,null,null,"vv","vo","ov","vo",null,null,null,null,null,null,null,null,null,null,null,null,null,"oo"]
["211. SDRO-pantebrev",null," ",null,null,null,"ov",null,"oo",null,"vo","vo","vo","vo","vo",null,null,null,"vo","vo",null,"vo",null,"vo",null,null,null,"vv",null,null,null,null,null,null,"vo","vo"]
["212. SDO-pantebrev","vv"," ","vo",null,null,"ov",null,"oo",null,"vo","vo","vo","vo","vo",null,"vv",null,"vo","vo",null,"vo",null,"vo",null,null,null,"vv",null,null,null,null,null,null,"vo","vo"]
["204. NyFuldmagt","ov",null,"oo",null,null," ",null," ",null," "," "," ",null," "," ","ov"," "]
["206. Tilbagekaldelse fuldmagt","ov",null,"oo"]
["214. UnderpantRespekt",null,null,null,null,null,"oo",null,null,null,null,null,null,null,null,null,null,null,"vv","vo",null,"vo",null,null,null,null,null,"vv",null,null,null,null,null,null,"vo","vo"]
["232. DigitaliserPantebrevFastEjendom","vv",null,null,null,null,"vv",null,"vv",null,null,null,null,null,null,"vv","vv",null,"vv","vo",null,"vo",null,null,null,null,null,"oo",null,null,null,null,null,null,null,"vo"]
["238. MeddelelseRekonstruktionsbehandlingFastEjendom",null,null,null,null,null,null,null,null,null,null,null,null,null,null,null,null,null,"oo","vo","ov","ov",null,null,null,null,null,"vv",null,null,null,null,null,null,null,"vo"]
["239. NavneændringAdkomstFastEjendom",null,null,null,null,"oo",null,null,null,null,null,null,null,null,"vo",null,null,null,"vo","vo",null,"vo",null,null,null,null,null,"oo",null,null,null,null,null,null,null,"vo"]
["240. MeddelelseFastEjendomAdkomst",null,null,null,null,null,null,null,null,null,null,null,null,null,null,null,null,null,"oo","vv","ov","vv","vv",null,null,null,"vv","vo",null,null,null,null,null,null,null,"vo"]
["241. MeddelelseFastEjendomPant",null,null,null,null,null,"ov",null,null,null,null,null,null,null,null,null,null,null,"oo","vv",null,null,"vv",null,null,null,null,"vo",null,null,null,null,null,null,null,"vo"]
["242. ForevisDokumentation",null,null,null,null,null,null,null,null,null,null,null,null,null,null,null,null,null,"vo",null,null,null,null,null,null,null,null,"oo"]
["244. AfgiftPantebrevPaategn",null,null,null,null,null,null,null,null,null,null,null,null,null,null,null,null,null,null,null,null,null,null,null,null,null,null,"oo"]
["245. SkifteretsattestÆgtefælle",null,null,null,null,null,null,null,null,null,null,null,null,null,null,null,null,null,null,null,"oo",null,null,null,null,null,null,"oo",null,null,null,null,"ov"]
["247. IndividualiserPantebrev"]
["248. Værdierklæring",null,null,null,"oo","vo",null,null,null,null,null,null,null,null,null,null,null,null,null,"vo",null,"vo",null,null,null,null," ","vo"]
["249. NoteringAdkomst",null,null,null,null,"oo",null,null,null,null,null,null,null,null,"vv",null,null,null,null,"vo",null,null,null,null,null,null,null,null,null,null,null,null,null,null,"vo","vo"]
["250. MatrikulærBerigtigelse",null,null,null,null,null,null,null,null,null,null,null,null,null,null,null,null,null,"oo","vo",null,"vo",null,null,null,"vv",null,"vv",null,null,null,null,null,null,null,"vo"]
["251. OmdannelseTilAfgiftspantebrev",null,null,null,null,null,"oo",null,null,null,null,null,null,null,null,"vo",null,null,"vo","vo",null,"vo",null,null,null,null,null,"vv",null,null,null,null,null,null,"vo","vo"]
["252. NormalvedtægtFravigelse",null,null," ",null,null,null,null,null,null,null,null,null,null,null,null,null,null,"vo","vo","vv","vo",null,"ov",null,null,null,"oo",null,null,null,null,null,null,"vo","vo"]
["253. SkadesløsbrevEjendomsskat",null,null,null,null,null,"vv",null,"ov"]
["254. AnmodningMortifikationPant","vo",null,null,null,null,"ov",null,"vv",null,null,null,null,"vv",null,"vv","vv",null,null,"vo","vv","vo",null,null,null,null,null,"oo",null,null,null,null,null,null,"vo","vo","vv"]
["255. AnmodningMortifikationServitut",null,null,null,null,null,null,null,null,null,null,null,null,null,null,null,null,null,"vv","vo","vo","vo",null,"vv",null,null,null,"oo",null,null,null,null,null,null,"vo","vo"]
["256. AnmodningEjendomsdom",null,null,null,null,null,null,null,null,null,null,null,null,null,null,null,null,null,null,null,null,null,null,null,null,null,null,"oo"]
[]
["BILBOG:"]
[]
["8. PantebrevBil","vv"," ","vo",null,null,"ov",null,"oo",null," ","vo","vo","vo","vo",null,"vv",null,"vo","vo"," ","vo",null,null,null,null,null,"vv",null,null,null,null," ",null,"vo","vo"]
["39. EjendomsforbeholdBil","vv"," ","vo",null,null,"ov",null,"oo",null," ","vo","vo","vo","vo",null,null,null,"vo","vo"," ","vo",null,null,null,null,null,"vv",null,null,null,null," ",null,null,"vo"]
["12. EjerpantebrevBil","vv"," ","vo",null,null,"ov",null,"oo",null," ","vo","vo","vo","vo","vv","vv",null,"vo","vo"," ","vo",null,null,null,null,null,"vv",null,null,null,null," ",null,"vo","vo"]
["20. UnderpantBil",null,null,null,null,null,"oo",null,"vv",null," "," ",null,null," ","ov"," ",null,"vv","vo",null,"vo",null,null,null,null,null,"vv",null,null,null,null,null,null,"vo","vo"]
["26. SkadesløsbrevBil",null," ",null,null,null,"ov",null,"oo",null," ","vo","vo","vo","vo",null,"vv",null,"vo","vo"," ","vo",null,null,null,null,null,"vv",null,null,null,null," ",null,"vo","vo"]
["33. UdlægBil",null,null,null,null,null,"ovx",null,"ovx",null," "," ","vox",null,null,null,null,null,"oo","vo",null,"vo",null,null,null,null,null,"vv",null,null,null,null,null,null,null,"vo"]
["36. ArrestBil",null,null,null,null,null,"ovx",null,"ovx",null," ",null,"vox",null,null,null,null,null,"oo","vo",null,"vo",null,null,null,null,null,"vv",null,null,null,null,null,null,null,"vo"]
["57. RespekBil",null,null,null,null,null,"oo",null,null,null,null,"vv",null,null,null,"vo",null,null,"vv","vo",null,"vo",null,null,null,null,null,"vv",null,null,null,null,null,null,"vo","vo"]
["61. KreditorskifteBil",null,null,null,null,null,"ov","vo","vv",null,null,null,null,null,null,"vo",null,null,"vv","vo",null,"vo",null,null,null,null,null,"vv",null,null,null,null,null,null,"vo","vo"]
["65. DebitorskifteBil",null,null,null,null,null,"oo",null,"vo","vv",null,"vo","vo",null,"vv","vo"," ",null,"vv","vo",null,"vo",null,null,null,null,null,"vv",null,null,null,null,null,null,"vo","vo"]
["69. NyMeddelelseshaverBil"," ",null," ",null,null,"oo",null,null,null,null," "," ",null,null,null,"vv","vv","vv","vo",null,"vo",null,null,null,null,null,"vv",null,null,null,null,null,null,"vo","vo"]
["73. NyFuldmagtshaverBil ","vv","vv","vo",null,null,"oo",null," ",null,null,null,null,null,null,"vo",null,null,"vv","vo",null,"vo",null,null,null,null,null,"vv",null,null,null,null,null,null,"vo","vo"]
["77. VilkårsændringBil",null,null,null,null,null,"oo",null,"oo",null," ","vo","vo",null,null,"vo",null,null,"vv","vo",null,"vo",null,null,null,null,null,"vv",null,null,null,null,null,null,"vo","vo"]
["81. PåtegningHæftelseBil","vv","vv","vo",null,null,"oo","vo","oo",null," ","vo","vo",null,"vo","vo",null,"vv","vv","vo",null,"vo",null,null,null,null,null,"vv",null,null,null,null,null,null,"vo","vo"]
["85. ForhøjelseBil",null,null,null,null,null,null,null,"oo",null," ","vo","vo",null,"vo","vv",null,null,"vv","vo",null,"vo",null,null,null,null,null,"vv",null,null,null,null,null,null,"vo","vo"]
["89. UdvidelseHæftelseBil",null,null,null,null,null,null,null,"oo",null," "," ","vo",null,"vo","vv",null,null,"vv","vo",null,"vo",null,null,null,null,null,"vv",null,null,null,null,null,null,"vo","vo"]
["93. NedlysningBil",null,null,null,null,null,"oo",null,null,null,null,"vo",null,null,null,"vo",null,null,"vv","vo",null,"vo",null,null,null,null,null,"vv",null,null,null,null,null,null,"vo","vo"]
["97. RelaksationBil",null,null,null,null,null,"oo",null,null,null,null,"vo",null,null,null,"vo",null,null,"vv","vo",null,"vo",null,null,null,null,null,"vv",null,null,null,null,null,null,"vo","vo"]
["101. AflysningHæftelseBil",null,null,null,null,null,"oo",null,"vv",null,null,null,null,null,null,"vo",null,null,"vv","vo"," ","vo",null,null,null,null,null,"vv",null,null,null,null,null,null,"vo","vo"]
["123. MeddelelseBil",null,null,null,null,null,null,null,"ov",null,null,null,null,null,null,null,null,null,"oo","vv"," ","vv",null,null,null,null,null,"vo",null,null,null,null,null,null,null,"vo","ov"]
["147. KæremålBil ",null,null,null,null,null,null,null,null,null,null,null,null,null,null,null,null,null,"vv","vo"," ","vo",null,null,null,null,null,"oo",null,null,null,null,null,null,null,"vo"]
["165. PåtegningMeddelelseBil",null,null,null,null,null,null,null,null,null,null,null,null,null,null,null,null,null,"vo","vo"," ","vo",null,null,null,null,null,"vv",null,null,null,null,null,null,null,"vo","oo"]
["169. AflysningMeddelelseBil",null,null,null,null,null,null,null,null,null,null,null,null,null,null,null,null,null,"vo","vo"," ","vo",null,null,null,null,null,"vo",null,null,null,null,null,null,null,"vo","oo"]
["174. IndkaldelseMortifikationBil ",null,null,null,null,null,null,null,null,null,null,null,null,null,null,null,null,null,"oo                      ","vo"," ","vo",null,null,null,null,null,"vv",null,null,null,null,null,null,null,"vo"]
["178. MeddelelseMortifikationBil",null,null,null,null,null,null,null,null,null,null,null,null,null,null,null,null,null,"vv","vo",null,"vo",null,null,null,null,null,"oo",null,null,null,null,null,null,null,"vo"]
["215. UnderpantsætningBilPaategning",null,null,null,null,null,"oo",null,null,null,null,null,null,null,null,null,null,null,"vv","vo",null,"vo",null,null,null,null,null,"vv",null,null,null,null,null,null,"vo","vo"]
["217. RelaksationMeddelelseBil",null,null,null,null,null,null,null,null,null,null,null,null,null,null,null,null,null,"vv","vo",null,"vo",null,null,null,null,null,"oo",null,null,null,null,null,null,null,"vo","vo"]
["218. Ny Fuldmagt (bil)","ov",null,"oo",null,null,null,null,null,null,null,null,null,null,null,null,"ov"]
["220. Tilbagekaldelse fuldmagt (bil)","ov",null,"oo"]
["233. DigitaliserPantebrevBil","vv",null,null,null,null,"vv",null,"vv",null,null,null,null,null,null,"vv","vv",null,"vv","vo",null,"vo",null,null,null,null,null,"oo",null,null,null,null,null,null,null,"vo"]
[]
["Andelsboligbog:"]
[]
["10. PantebrevAndel","vv"," ","vo",null,null,"ov",null,"oo",null," ","vo","vo","vo","vo",null,"vv",null,"vo","vo"," ","vo",null,null,null,null,null,"vo",null,null,null,null," ",null,"vo","vo"]
["14. EjerpantebrevAndel","vv"," ","vo",null,null,"ov",null,"oo",null," ","vo","vo","vo","vo","vv","vv",null,"vo","vo"," ","vo",null,null,null,null,null,"vo",null,null,null,null," ",null,"vo","vo"]
["22. UnderpantAndel",null,null,null,null,null,"oo",null,"vv",null,null," ",null,null," ","ov"," ",null,"vv","vo",null,"vo",null,null,null,null,null,"vv",null,null,null,null,null,null,"vo","vo"]
["28. SkadesløsbrevAndel",null," ",null,null,null,"ov",null,"oo",null," ","vo","vo","vo","vo",null,"vv",null,"vo","vo"," ","vo",null,null,null,null,null,"vv",null,null,null,null," ",null,"vo","vo"]
["34. UdlægAndel",null,null,null,null,null,"ovx",null,"ovx",null," "," ","vox",null,null,null,null,null,"oo","vo",null,"vo",null,null,null,null,null,"vv",null,null,null,null,null,null,null,"vo"]
["37. ArrestAndel",null,null,null,null,null,"ovx",null,"ovx",null," ",null,"vox",null,null,null,null,null,"oo","vo",null,"vo",null,null,null,null,null,"vv",null,null,null,null,null,null,null,"vo"]
["59. RespektAndel",null,null,null,null,null,"oo",null,null,null,null,"vv",null,null,null,"vo",null,null,"vv","vo",null,"vo",null,null,null,null,null,"vv",null,null,null,null,null,null,"vo","vo"]
["63. KreditorskifteAndel",null,null,null,null,null,"ov","vo","vv",null,null,null,null,null,null,"vo",null,null,"vv","vo",null,"vo",null,null,null,null,null,"vv",null,null,null,null,null,null,"vo","vo"]
["67. DebitorskifteAndel",null,null,null,null,null,"oo",null,"vo","vv",null,"vo","vo",null,"vv","vo"," ",null,"vv","vo",null,"vo",null,null,null,null,null,"vo",null,null,null,null,null,null,"vo","vo"]
["71. NyMeddelelseshaverAndel"," ",null," ",null,null,"oo",null,null,null,null," "," ",null,null,null,"vv","vv","vv","vo",null,"vo",null,null,null,null,null,"vv",null,null,null,null,null,null,"vo","vo"]
["75. NyFuldmagtshaverAndel","vv","vv","vo",null,null,"oo",null," ",null,null,null,null,null,null,"vo",null,null,"vv","vo",null,"vo",null,null,null,null,null,"vv",null,null,null,null,null,null,"vo","vo"]
["79. VilkårsændringAndel",null,null,null,null,null,"oo",null,"oo",null," ","vo","vo",null,null,"vo",null,null,"vv","vo",null,"vo",null,null,null,null,null,"vv",null,null,null,null,null,null,"vo","vo"]
["83. PåtegningHæftelseAndel","vv","vv","vo",null,null,"oo","vo","oo",null," ","vo","vo",null,"vo","vo",null,"vv","vv","vo",null,"vo",null,null,null,null,null,"vv",null,null,null,null,null,null,"vo","vo"]
["87. ForhøjelseAndel",null,null,null,null,null,null,null,"oo",null," ","vo","vo",null,"vo","vv",null,null,"vv","vo",null,"vo",null,null,null,null,null,"vo",null,null,null,null,null,null,"vo","vo"]
["91. UdvidelseHæftelseAndel",null,null,null,null,null,null,null,"oo",null," "," ","vo",null,"vo","vv",null,null,"vv","vo",null,"vo",null,null,null,null,null,"vo",null,null,null,null,null,null,"vo","vo"]
["95. NedlysningAndel",null,null,null,null,null,"oo",null,null,null,null,"vo",null,null,null,"vo",null,null,"vv","vo",null,"vo",null,null,null,null,null,"vv",null,null,null,null,null,null,"vo","vo"]
["99. RelaksationAndel",null,null,null,null,null,"oo",null,null,null,null,"vo",null,null,null,"vo",null,null,"vv","vo",null,"vo",null,null,null,null,null,"vv",null,null,null,null,null,null,"vo","vo"]
["103. AflysningHæftelseAndel",null,null,null,null,null,"oo",null,"vv",null,null,null,null,null,null,"vo",null,null,"vv","vo"," ","vo",null,null,null,null,null,"vv",null,null,null,null,null,null,"vo","vo"]
["124. MeddelelseAndel",null,null,null,null,null,null,null,"ov",null,null,null,null,null,null,null,null,null,"oo","vv"," ","vv",null,null,null,null,null,"vo",null,null,null,null,null,null,null,"vo","ov"]
["149. KæremålAndel",null,null,null,null,null,null,null,null,null,null,null,null,null,null,null,null,null,"vv","vo"," ","vo",null,null,null,null,null,"oo",null,null,null,null,null,null,null,"vo"]
["167. PåtegningMeddelelseAndel",null,null,null,null,null,null,null,null,null,null,null,null,null,null,null,null,null,"vo","vo"," ","vo",null,null,null,null,null,"vv",null,null,null,null,null,null,null,"vo","oo"]
["171. AflysningMeddelelseAndel",null,null,null,null,null,null,null,null,null,null,null,null,null,null,null,null,null,"vo","vo",null,"vo",null,null,null,null,null,"vo",null,null,null,null,null,null,null,"vo","oo"]
["176. IndkaldelseMortifikationAndel ",null,null,null,null,null,null,null,null,null,null,null,null,null,null,null,null,null,"oo                      ","vo",null,"vo",null,null,null,null,null,"vv",null,null,null,null,null,null,null,"vo"]
["180. MeddelelseMortifikationAndel",null,null,null,null,null,null,null,null,null,null,null,null,null,null,null,null,null,"vv","vo",null,"vo",null,null,null,null,null,"oo",null,null,null,null,null,null,null,"vo"]
["216. UnderpantsætningAndelPaategning",null,null,null,null,null,"oo",null,null,null,null,null,null,null,null,null,null,null,"vv","vo",null,"vo",null,null,null,null,null,"vv",null,null,null,null,null,null,"vo","vo",null,null,null,null,null,null,null,null,null,null,null,null,null,null,null,null,null,null,null,null,null,null,null,null,null,{"$f":"-AH185:AH186","v":{"$error":"#VALUE!"}}]
["221. RelaksationMeddelelseAndel",null,null,null,null,null,null,null,null,null,null,null,null,null,null,null,null,null,"vv","vo",null,"vo",null,null,null,null,null,"oo",null,null,null,null,null,null,null,"vo","vo"]
["222. Ny Fuldmagt (Andel)","ov",null,"oo",null,null,null,null,null,null,null,null,null,null,null,null,"ov"]
["224. Tilbagekaldelse Fuldmagt (Andel)","ov",null,"oo"]
["234. DigitaliserPantebrevAndel","vv",null,null,null,null,"vv",null,"vv",null,null,null,null,null,null,"vv","vv",null,"vv","vo",null,"vo",null,null,null,null,null,"oo",null,null,null,null,null,null,null,"vo"]
["246. AdkomsthavererklæringAndel",null,null,null,null,null,null,null,null,null,null,null,null,null,null,null,null,null,null,null,null,null,null,null,null,null,null,"oo"]
[]
["Personbog:"]
[]
["9. PantebrevLøsøre","vv"," ","vo",null,null,"ov",null,"oo",null," ","vo","vo","vo","vo",null,"vv",null,"vo","vo"," ","vo",null,"vo",null,null,null,"vv",null,null,null,null," ",null,"vo","vo"]
["13. EjerpantebrevLøsøre","vv"," ","vo",null,null,"ov",null,"oo",null," ","vo","vo","vo","vo","vv","vv",null,"vo","vo"," ","vo",null,"vo",null,null,null,"vv",null,null,null,null," ",null,"vo","vo"]
["21. UnderpantPersonbogen",null,null,null,null,null,"oo",null,"vv",null," "," ",null,null," ","ov"," ",null,"vv","vo",null,"vo",null,"vo",null,null,null,"vv",null,null,null,null,null,null,"vo","vo"]
["27. SkadesløsbrevLøsøre",null," ",null,null,null,"ov",null,"oo",null," ","vo","vo","vo","vo",null,"vv",null,"vo","vo"," ","vo",null,"vo",null,null,null,"vv",null,null,null,null," "," ","vo","vo"]
["29. SkadesløsbrevVirksomhedspant",null," ",null,null,null,"ovx",null,"oox",null," ","vox","vox","vo","vo",null,"vv",null,"vo","vo"," ","vo",null,"vo",null,null,null,"vv",null,null,null,null," "," ","vo","vo"]
["30. SkadesløsbrevFordringspant",null," ",null,null,null,"ovx",null,"oox",null," ","vox","vox","vo","vo",null,"vv",null,"vo","vo"," ","vo",null,"vo",null,null,null,"vv",null,null,null,null," "," ","vo","vo"]
["45. PantsætningsforbudPersonbogen  ",null," ",null,null,null,null,null,"oox",null," ",null,null,null,null,null,null,null,"vv","vo",null,"vo",null,"ovx",null,null,null,"vv",null,null,null,null," "," ","vo","vo"]
["58. RespektPersonbogen",null,null,null,null,null,"oo",null,null,null,null,"vv",null,null,null,"vo",null,null,"vv","vo",null,"vo",null,null,null,null,null,"vv",null,null,null,null,null,null,"vo","vo"]
["62. KreditorskifteLøsøre",null,null,null,null,null,"ov","vo","vv",null,null,null,null,null,null,"vo",null,null,"vv","vo",null,"vo",null,null,null,null,null,"vv",null,null,null,null,null,null,"vo","vo"]
["66. DebitorskifteLøsøre",null,null,null,null,null,"oo",null,"oo","vv",null,"vo","vo",null,"vo","vo"," ",null,"vv","vo",null,"vo",null,"vo",null,null,null,"vv",null,null,null,null,null,null,"vo","vo"]
["70. NyMeddelelseshaverLøsøre"," ",null," ",null,null,"oo",null,null,null,null," "," ",null,null,null,"vv","vv","vv","vo",null,"vo",null,null,null,null,null,"vv",null,null,null,null,null,null,"vo","vo"]
["74. NyFuldmagtshaverLøsøre","vv","vv","vo",null,null,"oo",null," ",null,null,null,null,null,null,"vo",null,null,"vv","vo",null,"vo",null,null,null,null,null,"vv",null,null,null,null,null,null,"vo","vo"]
["78. VilkårsændringLøsøre",null,null,null,null,null,"oo",null,"oo",null," ","vo","vo",null,null,"vo",null,null,"vv","vo",null,"vo",null,"vo",null,null,null,"vv",null,null,null,null,null,null,"vo","vo"]
["82. PåtegningHæftelsePersonbogen","vv","vv","vo",null,null,"oo","vo","oo",null," ","vo","vo",null,"vo","vo",null,"vv","vv","vo",null,"vo",null,"vo",null,null,null,"vv",null,null,null,null,null,null,"vo","vo"]
["86. ForhøjelsePersonbogen",null,null,null,null,null,null,null,"oo",null," ","vo","vo",null,"vo","vv",null,null,"vv","vo",null,"vo",null,"vo",null,null,null,"vv",null,null,null,null,null,null,"vo","vo"]
["90. UdvidelseHæftelseLøsøre",null,null,null,null,null,null,null,"oo",null," "," ","vo",null,"vo","vv",null,null,"vv","vo",null,"vo",null,"vo",null,null,null,"vv",null,null,null,null,null,"vo",null,"vo"]
["94. NedlysningPersonbogen",null,null,null,null,null,"oo",null,null,null,null,"vo",null,null,null,"vo",null,null,"vv","vo",null,"vo",null,null,null,null,null,"vv",null,null,null,null,null,null,"vo","vo"]
["98. RelaksationLøsøre",null,null,null,null,null,"oo",null,null,null,null,"vo",null,null,null,"vo",null,null,"vv","vo",null,"vo",null,null,null,null,null,"vv",null,null,null,null,null,"vo",null,"vo"]
["102. AflysningHæftelsePersonbogen",null,null,null,null,null,"oo",null,"vv",null,null,null,null,null,null,"vo",null,null,"vo","vo"," ","vo",null,null,null,null,null,"vv",null,null,null,null,null,null,"vo","vo","vo"]
["148. KæremålPersonbogen",null,null,null,null,null,null,null,null,null,null,null,null,null,null,null,null,null,"vv","vo"," ","vo",null,null,null,null,null,"oo",null,null,null,null,null,null,null,"vo"]
["157. MeddelelseBosondringLøsøre",null,null,null,null,null,null,null,null,null,null,null,null,null,null,null,null,null,"oo","vo",null,"vo",null,null,null,null,null,"vv",null,null,null,null,null,null,null,"vo","ov"]
["166. PåtegningMeddelelseLøsøre",null,null,null,null,null,null,null,null,null,null,null,null,null,null,null,null,null,"oo","vo",null,"vo",null,null,null,null,null,"vv",null,null,null,null,null,null,null,"vo"]
["175. IndkaldelseMortifikationLøsøre",null,null,null,null,null,null,null,null,null,null,null,null,null,null,null,null,null,"oo","vo",null,"vo",null,null,null,null,null,"vv",null,null,null,null,null,null,null,"vo"]
["179. MeddelelseMortifikationLøsøre",null,null,null,null,null,null,null,null,null,null,null,null,null,null,null,null,null,"vv","vo",null,"vo",null,null,null,null,null,"oo",null,null,null,null,null,null,null,"vo"]
["31. Høstpantebrev",null," ",null,null,null,"ov",null,"oo",null," ","vo","vo",null,"vo",null,"vv",null,"vo","vo"," ","vo",null,"vo",null,null,null,"vv",null,null,null,null," "," ","vo","vo"]
["188. IndberetningTestamente",null,null,null,null,null,null,null,null,null,null,null,null,null,null,null,null,null,"oo","vo",null,"vo",null,null,null,null,null,"vv",null,null,null,null,null,null,null,"vo","oo"]
["189. IndberetningCodicil",null,null,null,null,null,null,null,null,null,null,null,null,null,null,null,null,null,"oo","vo",null,"vo",null,null,null,null,null,"vv",null,null,null,null,null,null,null,"vo","oo"]
["190. IndberetningBørnetestamente",null,null,null,null,null,null,null,null,null,null,null,null,null,null,null,null,null,"oo","vo",null,"vo",null,null,null,null,null,"vv",null,null,null,null,null,null,null,"vo","oo"]
["191. AnnullationTestament",null,null,null,null,null,null,null,null,null,null,null,null,null,null,null,null,null,"oo","vo",null,"vo",null,null,null,null,null,"vv",null,null,null,null,null,null,null,"vo","oo"]
["144. TinglysningVærgemål",null,null,null,null,null,null,null,null,null,null,null,null,null,null,null,null,null,"vv","vo",null,"vo",null,null,null,null,null,"vv",null,null,null,null,null,null,null,"oo","ovx"]
["145. TinglysningÆgtepagt",null,null,null,null,null,null,null,null,null,null,null,null,null,null,null,null,null,"vv","vo",null,"vo",null,null,null,null,null,"vv",null,null,null,null,null,null,null,"vo","oox"]
["192. PåtegningÆgtepagt",null,null,null,null,null,null,null,null,null,null,null,null,null,null,null,null,null,"vv","vo",null,"vo",null,null,null,null,null,"vv",null,null,null,null,null,null,null,"vo","oox"]
["225. RelaksationMeddelelseLøsøre",null,null,null,null,null,null,null,null,null,null,null,null,null,null,null,null,null,"vv","vo",null,"vo",null,null,null,null,null,"oo",null,null,null,null,null,null,null,"vo","oo"]
["226. Ny fuldmagt (løsøre)","ov",null,"oo",null,null,null,null,null,null,null,null,null,null,null,null,"ov"]
["228. Tilbagekaldelse Fuldmagt (løsøre)","vv",null,"oo"]
["231. UnderpantsætningLøsørePaategning",null,null,null,null,null,"oo",null,null,null,null,null,null,null,null,null,null,null,"vv","vo",null,"vo",null,null,null,null,null,"vv",null,null,null,null,null,null,"vo","vo"]
["235. DigitaliserPantebrevLøsøre","vv",null,null,null,null,"vv",null,"vv",null,null,null,null,null,null,"vv","vv",null,"vv","vo",null,"vo",null,null,null,null,null,"oo",null,null,null,null,null,null,null,"vo"]
["161. MeddelelseRådighedsfratagelseSkiftelovenLoesoere",null,null,null,null,null,null,null,null,null,null,null,null,null,null,null,null,null,"oo","vo",null,"vo",null,null,null,null,null,"vv",null,null,null,null,null,null,null,"vo","ov"]
["236. UdvidelseRelaksationHæftelseLøsøre",null,null,null,null,null,"oo",null,"oo",null,null,"vo",null,null,null,"vo",null,null,"vv","vo",null,"vo",null,"vo",null,null,null,null,null,null,null,null,null,null,"vo","vo"]
["237. AflysningPantsætningsforbudPersonbogen",null,null,null,null,null,null,null,null,null,null,null,null,null,null,null,null,null,"vo","vo",null,"vo",null,"oo",null,null,null,"vv",null,null,null,null,null,null,"vo","vo"]
["170. AflysningPersondokument",null,null,null,null,null,null,null,null,null,null,null,null,null,null,null,null,null,"oo","vo",null,"vo",null,null,null,null,null,"vo",null,null,null,null,null,null,null,"vo"]
["243. EjerpantebrevVirksomhedspant","vv"," ","vo",null,null,"ov",null,"oo",null," ","vo","vo","vo","vo","vv","vv",null,"vo","vo"," ","vo",null,"vo",null,null,null,"vv",null,null,null,null," ",null,"vo","vo"]
["227. Fremtidsfuldmagt","ov",null,"oo",null,null,null,null,null,null,null,null,null,null,null,null,null,null,"ov"]
["229. AktualiserFremtidsfuldmagt","vv",null,"vv",null,null,null,null,null,null,null,null,null,null,null,null,null,null,"oo"]

{"sheet":"Version","index":1,"n_rows":153,"n_cols":2,"rows_kept":153,"cut":false,"hidden":false,"merged":[]}
["Version","Beskrivelse"]
["04.02.2010","Baseline Bilbog"]
["16.03.2010","Fuldmagt bil 218/220 tilføjet med samme roller som fuldmagter i tingbogen - fuldmagtshaver ov og fuldmagtsgiver oo"]
["24.03.2010","ekstype 164 (ejer er sat til vv)"]
["24.03.2010","Udlæg - rollen pantsætter er sat til vv"]
["24.03.2010","ekstype 1,2,3,5,117,104,105,106,107,108,207 har fået tilføjet vv ved rollen anmoder"]
["16.04.2010","Bilbog slettet ekstype 200, Andelsbolig bogen slettet 202, personbogen slettet 201 - ændret bogstavskombinationen udfor ekstype 123 bilbog, 124 andelsboligbog. Myndighedsrollen er sat til OV og disponentrollen til OV og anmoderrollen til OO"]
["16.04.2010","Tilføjet til bilbog ekstype 215, 217, 218, 220 til andelsboligbog ekstype 216, 221, 222, 224 og til personbogen ekstype 225, 226, 228 samt 231 og indsat bogstavskombination"]
["27.04.2010","Pantebrev 7 og Ejerpantebrev 11, 212 i fast ejendom, 8 og 12 i bilbogen, 10 og 14 i Andelsboligbogen, 9 og 13 i personbogen  har fået tilføjet rolle fuldmagtshaver med VV,og fuldmagtsgiver med VO, meddebitor tilføjet med VO for 7,11, 23, 24, 25, 211, 212 i fastejendom"]
["27.04.2010","Tilføjet eksptype 232,233,234,235 og sat relevante roller til vv"]
["28.04.2010","Ekstyper 123 bilbog og 124 andelsboligbogen, har fået ny markering ud for debitor til vv istet for ov"]
["19.05.2010","Ekspeditionstype 167 og 171 er blevet opdateret, har fået fjernet OO anmoder og i stedet fået OO disponent"]
["21.05.2010","Fuldmagt andelsbolig- og personbogen har fået samme roller som tilsvarende anmeldelser i ting- og bilbogen"]
["25.05.2010","Der var en rettelse fra 04.05.2010 som ikke var med i dette register. Vilkårsændring bil fået debitor til vo"]
["31.05.2010","Rettelse af 28.04.2010 tilbageføres så debitor nu får kombination 0V på ekstype 123 og 124. Rollen påtaleberettiget fjernes fra ekstyper i bilbogen og andelsboligbogen. Rollen værge tilføjes ekstype Ny fuldmagt / tilbagekaldelse fuldmagt med VO for andelsboligbogen og personbogen. FastEjendom - rollen påtaleberettiget ændres til 00 for ekstype 41, 46, 47, 48."]
["15.06.2010","Ekstype 39 Ejendomsforbehold - fuldmagtshaver fået vv og fuldmagtsgiver vo, ekstype 61, 62, 63 Kreditorskifte i de små bøger - kreditor har fået vv, ekstype 93, 94, 95 nedlysning i de små bøger - kautionist har fået vo"]
["25.06.2010","Anmoderrollen sat til oo på ekstyperne Digitaliserpantebrev i alle bøger"]
["09.08.2010","Ekstype 41 Nye vedtægter (har fået myndighedsrollen som vo)"]
["10.08.2010","Rettelse angivet 15.7 ses ikke i dette register, hvorfor der må være sket en fejl med versionerne. Rettelsen af 15/7 genindføres Påtaleberettiget er angivet for alle servitutter p.t. som vv, da der er fejl, når påtaleberettiget er et matr.nr. "]
["07.09.2010","Tilrettet ekstype 105 således at anmoder er gjort obligatorisk, idet der ingen obligatorisk rolle er angivet, da påtaleberettiget p.t. ikke kan angives om 00 - fordi påtaleberettiget tilbage i akten kan være et matr.nr, og derfor ikke kan angives korrekt"]
["07.09.2010","Tilrettet ekstype 106 med 00 for anmoder og vv for påtaleberettiget og vo for udtrædende påtaleberettiget"]
["14.09.2010","For ekstype 165 og 169 i bilbogen er sat vo for myndighed og værge, for ekstype 102 er der indsat vo for myndigheden, kreditor er ændret til vo, og anmoder er indsat med oo."]
["27.09.2010","Ændret bogstavskombination ved ekstype 45 Pantsætningsforbud i personbogen, hvor kreditor, kautionist, pantsætter, myndighed, ægtefælle nu er fjernet som roller for ekstypen.påtaleberettiget er nu angivet med OV "]
["28.09.2010"," Alle persondokumenter (ægtepagter, værgemål, testamenter) skal have disponentrolle. Derfor fjernes 00 ved rollen ægtefælle for 145 og 192 og oo tilføjet rollen disponent for 188, 189, 190, 191, 145 og 192 og ov for disponent for ekstype 144"]
["13.10.2010","Ekstype 203 TinglysningHævd - for OV udfor rollen køber/erhverver"]
["18.10.2010","Ekstyperne 214, 215, 216, 231 (underpantsætningPåtegning) i alle bøger har fået tilføje vo for rolle værge. "]
["15.11.2010","Ekstype 161 indsat i personbogen og bogstavskombination er indsat for roller"]
["22.11.2010","Ekstype 41 Nye vedtægter har fået ejer som 0V og Anmoder som 00, da vedtægter oftest lyses på mange ejendomme, og vi nu kræver alle ejere indført som ejere. Så melder systemet timeout, hvis der skal markeres for fuldmagtsordning og cvr skal angives for underskriftsmetode. Hvorfor vi har valgt denne løsning, og ejerforeningen angives derfor som anmoder og underskriver"]
["07.12.2010","Ekstype 144 TinglysningVærgemål (Personbogen) har fået rollen Anmoder som OO og markering for rollen Disponent er fjernet,  "]
["17.01.2011","Ekstype 144 TinglysningVærgemål (Personbogen): Rollen værge er sat til VO, disponent er sat til ov og markering for rollen anmoder er fjernet. Ekstype 102 AflysningPersonbogDokument (Personbogen): Markering for rollen anmoder er fjernet og rollen disponent er sat til VO. Ekstype Bodeling (Fast ejendom) er rollen Bobestyrer sat til VO."]
["22.01.2011","Rollerne \"Bobestyrer\" og \"Kurator\" er begge sat til VO på følgende ekspeditionstyper; ET 68 Ny Meddelelseshaver Hæftelse, ET 72 Ny Fuldmagtshaver Hæftelse, ET 76 Vilkårsændring Hæftelse, ET 69 Ny Meddelelseshaver Bil, ET 73 Ny Fuldmagtshaver Bil, ET 77 Vilkårsændring Bil, ET 71 Ny Meddelelseshaver Andel, ET 75 Ny Fuldmagtshaver Andel, ET 79 Vilkårsændring Andel, ET 70 Ny Meddelelseshaver Løsøre, ET 74 Ny Fuldmagtshaver Løsøre og ET 78 Vilkårsændring Løsøre"]
["02.02.2011","ET 161 MeddelelseRådighedsfratagelseSkiftelovenLøsøre (Personbogen): Rollen \"ejer\" er lavet blank, og rollen \"anmoder\" er sat til OO. Rollen \"debitor\" er sat til OV fsv. angår ET 60 Transport (fast ejendom), ET 61 Kreditorskifte (Bilbogen), ET 63 Kreditorskifte (Andel) og ET 62 Kreditorskifte (Person)."]
["15.02.2011","ET 238 MeddelelsesRekronstruktionsbehandlingFastEjendom: Rollen \"myndighed\" er sat til OO, rollen \"ejer\" er sat til OV og rollen \"kurator\" er sat til OV. ET 236. UdvidelseRelaksationHæftelseLøsøre: Rollen \"kreditor\" er sat til OO, rollen \"kautionist\" er sat til VO, rollen \"underpanthaver\" er sat til VO, rollen \"bobestyrer\" er sat til VO, rollen \"kurator\" er sat til VO, rollen \"værge\" er sat til VO. ET 237. AflysningMeddelelseLøsøre: Rollen \"myndighed\" er sat til OO, rollen \"anmoder\" er sat til OO og rollen \"værge\" er sat til VO. ET 170. AflysningTinglysningFormueforhold: Rollen \"myndighed\" er sat til VO, rollen \"anmoder\" er sat til OO og rollen \"værge\" er sat til VO."]
["16.02.2011","ET 161 MeddelelseRådighedsfratagelseSkiftelovenLøsøre (Personbogen): Myndighed er OO. Rollen \"anmoder\" er sat til blank"]
["18.02.2011","ET 170 AflysningTinglysningFormueforhold (Personbogen): Myndighed er OO. Rollen anmoder er sat til blank."]
["03.03.2011","ET 157 MeddelelseBosondringLøsøre: Rollen \"Myndighed\" er sat til blank og rollen \"disponent\" er sat til VO. ET 161 MeddelelseRådighedsfratagelseSkiftelovenLøsøre: Rollen \"Myndighed\" er sat til blank og rollen \"disponent\" er sat til OV - "]
["04.03.2011","ET 157 MeddelelseBosondringLøsøre: Rollen \"Myndighed\" er gen-indført med \"OO\" og ET 161 MeddelelseRådighedsfratagelseSkiftelovenLøsøre: Rollen \"Myndighed\" er gen-indført med \"OO\"."]
["05.03.2011","ET 157 MeddelelseBosondringLøsøre: Rollen \"disponent\" er ændret til \"ov\" og ET 161 MeddelelseRådighedsfratagelseSkiftelovenLøsøre: Rollen \"disponent\" er ændret til \"ov\""]
["09.03.2011","ET 236. UdvidelseRelaksationHæftelseLøsøre: Rollen \"debitor\" er tilføjet og angivet til \"OO\"."]
["22.03.2011","Rollerne \"Bobestyrer\", \"Kurator\" og \"Værge\" er sat til \"vo\" for alle ekspeditionstyper i alle bøger - på nær ET 122 hvor \"Bobestyrer\" fortsat er sat til \"ov\", ET 131 hvor \"Kurator\" fortsat er sat til \"ov\", ET 210 hvor \"Værge\" fortsat er sat til \"vv\" og ET 238 hvor \"Kurator\" fortsat er sat til \"ov\""]
["31.03.2011","ET 236. UdvidelseRelaksationHæftelseLøsøre: Rollen \"kreditor\" er ændret til \"OV\" og rollen \"debitor\" er ændret til \"OV\"."]
["06.04.2011","Rollen \"påtaleberettiget\" er sat til \"VO\" på ET 5. Bodeling, 54. Påtegning Adkomst, 55. Aflysning Betinget Skøde, 115. Ægtepagt Adkomst, 117. Auktionsskøde, 118. Skifteretsattest, 116. Ejendomsdom, 203. Tinglysning Hævd og 207. Bodeling Betinget."]
["03.05.2011","Rollen \"kreditor\" er sat til \"OO\" på ET 102. Aflysning Personbog Dokument."]
["17.05.2011","Rollen \"anden arving\" er sat til \"VO\" i fast ejendom på ET 56, 60, 64, 68, 72, 76, 80, 84, 88, 92, 96 og 100. I bilbogen på ET 8, 12, 26, 57, 61, 65, 69, 73, 77, 81, 85, 89, 93, 97 og 101. I andelboligbogen på ET 10, 14, 28, 59, 63, 67, 71, 75, 79, 83, 87, 91, 95, 99 og 103. I personbogen på ET 9, 13, 58, 62, 66, 70, 74, 78, 82, 86, 90, 94, 98, 102 og 236."]
["06.07.2011","Rollen \"påtaleberettiget\" er sat til \"OO\" og rollen \"anmoder\" er sat til blank på ET 237 Aflysning Meddelelse Løsøre."]
["27.09.2011","Rollerne \"myndighed\" og \"anden arving\" er tilføjet med \"VO\" på ET 54. Påtegning adkomst. Rollen \"myndighed\" er tilføjet med \"VO\" på ET 47. Lejekontrakt og ET 48. Forpagtningskontrakt. Rollerne \"Anden arving\" og \"Boet efter afdøde\" er ændret til \"VO\" på ET 118. Skifteretsattest."]
["05.10.2011","Rollen \"ejer\" er sat til \"OV\" på ET 143. Meddelelse tvangsauktion. "]
["05.10.2011","Rollen \"køber/erhverver\" er ændret til \"VV\" på ET 54. Påtegning adkomst."]
["18.10.2011","Rollen \"påtaleberettiget\" er sat til \"VO\" på ET 236. Udvidelse Relaksation Hæftelse Løsøre.\nRollen \"anmoder\" er ændret til \"OO\" på ET 54. Påtegning adkomst.\nRollen \"debitor\" er ændret til \"OV\" på ET 19. Underpantsætning Fast Ejendom, ET 20. Underpant Bil, ET 21. Underpant Ejerpantebrev Løsøre og ET 22. Underpant Ejerpantebrev Andel."]
["02.11.2011","Rollen \"kreditor\" er ændret til \"ov\" på ET 60. TransportHæftelseFastEjendom, ET 61. KreditorskifteBil, ET 63. KreditorskifteAndel og ET 62. KreditorskifteAndel, efter aftale med hotline og SH."]
["23.11.2011","Rollen \"Udlejer\" er ændret til \"oo\" på ET 47. Lejekontrakt. Rollen \"Boet efter afdøde\" er sat til \"vo\" på ET 1. Endeligt skøde og ET 3. Betinget skøde. Rollen \"Ejer\" er sat til \"ov\" på ET 120. ÆgtepagtSæreje -."]
["30.11.2011","Rollen \"debitor\" er ændret til \"VV\" på ET 19. Underpantsætning Fast Ejendom, ET 20. Underpant Bil, ET 21. Underpant Ejerpantebrev Løsøre og ET 22. Underpant Ejerpantebrev Andel,\nRollen \"ægtefælle\" er sat til \"VV\" på ET 47. Lejekontrakt og ET 48. Forpagtningskontrakt"]
["14.12.2011","Rollen \"værge\" er ændret til \"VO\" på ET 210. Tinglysning af værgemål, ifl. Aftale med AKA og SH."]
["04.01.2012","Rollen Anden arving er slettet som vo på ekstype 1 og 3"]
["24.01.2012","Ekstype 41 Nye vedtægter Fast ejendom, Ejer ændres til vv, påtaleberettiget ændres til ov. Ekstype 38 Anden hæftelse fast ejendom, Anden arving - bogstavskombination slettes. Ekstype 186 Ny bygning er ejer angivet nu med ov"]
["31.01.2012","ET 51 har fået rollen ejer som vo (af hensyn til underskrift af endelig skødepåtegning af en utinglyst ejer"]
["20.02.2012","ET 236 i personbogen (udvidelseRelaksationLøsøre) Anmoder har fået oo"]
["08.03.2012","Jfr. FØ43 har jeg tilføjet 4 nye ekstyper 239, 240, 241 og 242 - og navneændret 181 f.s.v. angår FE. De udgået ekspeditionstyper røres der ikke ved, bortset fra markering i registret KontrolEkstype, hvor der er tilføjet en kolonne udgået."]
["07.05.2012","ekstype 240 og 241 har fået tilført rollen værge som vo "]
["14.05.2012","Boet efter er sat som vo på ekstype 51 endelig indførelse.Ekstype Ny påtaleberettiget har fået tilført rollen ejer som vo"]
["15.05.2012","Indsat rollen anmoder på samtlige ekstyper, hvor den ikke tidligere har været angivet - og med markering vv"]
["16.05.2012","Meddelelse tvangsauktion har fået tilført rollen ejer med ov"]
["22.05.2012","ekstype 240 og 241 har fået tilført rollerne kurator, bobestyrer, medhjælper - 240 har fået tilført yderligere rolle brugspanthaver"]
["23.05.2012","Ekstype 240 har fået rollen ejer som ov og 241 har fået kreditor som ov"]
["30.05.2012","Ekstype 106 PåtegningServitut har fået tildelt rollen landinspektør som vo"]
["04.06.2012","242. ForevisDokumentation har fået tilknyttet rollerne køber, sælger  og myndighed som vo"]
["26.06.2012","Boet efter afdøde er sat som vo på ekstype 54 Påtegning adkomst"]
["29.06.2012","Alle ekstyper i alle bøger, bortset fra Ny Fuldmagt og Tilbagekaldelse Fuldmagt har fået rollen myndighed tilvalgt som vv"]
["05.07.2012","Ekstypen PåtegningHæftelse i de 4 bøger har fået rollen debitor OO"]
["01.08.2012","ændret rettelsen af 05.07.2012 tilbage til at rollen debitor skal være vo for ekstypen PåtegningHæftelse i alle 4 bøger. Samtidig har jeg tilføjet rollen ejer som vo for ektype 47 og 48. For samme ekstyper er landinspektør angivet som vv"]
["12.09.2012","Ekstype 40,41,46,47,48,50 får rollen påtaleberettiget angivet som OV"]
["12.10.2012","ekstype 81, 82 og  83 har fået fjernet VO for rollen udtrædende debitor"]
["16.10.2012","ekstyperne forhøjelse og udvidelse i de 4 bøger har fået slettet kreditor som vv "]
["07.11.2012","60. TransportHæftelseFastEjendom har fået fjernet rollen debitor som ov - helt. Ingen angivelse"]
["08.11.2012","64 Debitorskifte - ejer har fået rollen vo"]
["08.11.2012","Ekstyperne kreditorskifte bil 61, andel 63 og løsøre 62 har fået fjernet rollen debitor som ov helt, ingen angivelse. Ekstype DebitorskifteBil og DebitorskifteAndel har fået debitor ændret fra oo til vo, jfr. Fast Ejd rolle for disse ekstyper"]
["12.11.2012","Ekstyperne 60, 61,63,62 har fået indsat debitor igen men som vv, jfr. Enettes kommentarer"]
["30.11.2012","Ekstype 181 har fået ændret ejer til ov, ekstype 40,41,46,47,48,50,104,105,106,107,108 har fået vo  boet efter afdøde "]
["31.01.2013","Ekstype 169 i bilbogen har fået oo for anmoder og vo for disponent. 217 i bilbogen har fået vo for disponenten. Ekstype 171 i andel har fået oo for anmoder og vo for disponent, ekstype 221 har fået vo for disponenten"]
["28.02.2013","Ekstypen vilkårsændring og påtegning i de 4 bøger har fået rollen debitor OO"]
["11.03.2013","Ekstype 144 Tinglysning Værgemål i Personbogen har fået ændret værge til OO"]
["04.04.2013","Ekstype 116 fået tilføjet rollen køber/erhverver som OV"]
["05.04.2013","Ekstype 116 fået fjernet rollen køber/erhverver og i stedet fået tilføjet rollen Ejer som OV"]
["09.04.2013","Ekstype 64 har fået vo for rollen tiltrædende adkomsthaver og slettet vo for rollen ejer"]
["24.04.2013","Ny ekstype i personbogen 243 EjerpantebrevVirksomhedspant"]
["04.07.2013","Ekstyperne 6,7,11,23,24,25,38,84,80,88,76,211 og 212 får vo i rollen Boet efter. I ekstypen påtegning adkomst 54, er sælger ændret fra vv til vo, og ejerrollen tildelt et vo"]
["04.10.2013","Ekstype Anden Adkomst har iflg. FØ110 fået ændret køber fra VO til OV. Sælger forbliver OV og anmoder forbliver OO"]
["17.12.2013","FØ80 - Ny ekspeditionstype 244 AfgiftPantebrevPaategn"]
["06.01.2014","Debitorskifte i personbogen har fået tilføjet rollen påtaleberettiget som VO."]
["13.02.2014","Dokumenttype 242 Forevis Dokumentation har fået rollen VO for landinspektør"]
["17.03.2014","FØ80 - Ny ekspeditionstype 244 AfgiftPantebrevPaategn i drift."]
["15.04.2014","Ny dokumenttype 245 SkifteretsattestÆgtefælle indført i registret jfr. FØ130"]
["19.06.2014","Dokumenttype 168 Aflysning meddelelse har fået ægtefælle som vo"]
["02.07.2014","Dokumenttype 80 PåtegningHæftelse har fået pantsætter og tiltrædende adkomsthaver som vo"]
["19.08.2014","Dokumenttype 19 har fået rollen Anden Arving og Boet efter afdøde som vo, dokumenttype 20, 21, 22 har fået anden arving som vo."]
["04.11.2014","Dokumenttype 210 Tinglysning Værgemål, har fået værge som oo og anmoder har fået fjernet sin markering"]
["05.01.2015","Dokumenttype 242 Forevis Dokumentation har fået fjernet alle roller ud over anmoder"]
["13.01.2015","Dokumenttype 105 Ny Påtaleberettiget - udtrædende påtaleberettiget ændres fra vo til vv "]
["21.03.2015","Ny dokumenttype 246. AdkomsthavererklæringAndel jfr. FØ156, OO er indsat under anmoder"]
["25.03.2015","Ny Fuldmagt (204, 218, 222 og 226) i alle 4 bøger har fået fjernet vo for bobestyrer, kurator og værge, samt fjernet vv for anmoder. Der er tilføjet ov for meddelelseshaver. Tilbagekaldelse Fuldmagt i alle 4 bøger (206, 220, 224 og 228)  har fået fjernet vo for bobetyrer, kurator og værge, samt fjernet vv for anmoder. "]
["28.04.2015","Dokumenttype 100, 101, 102, 103  har fået tilføjet rollen debitor som vv, og dokumenttype 110 har fået tilføjet rollerne kreditor og debitor som vv"]
["28.04.2015","Underpant Ejerpantebrev Løsøre (21) har fået vo for rollen påtaleberettiget "]
["05.04.2016","Tilføjet VV i dokumenttypen 110 Tinglysningslovens§20 for rollerne Påtaleberettiget og Disponent"]
["14.06.2016","Ændret til VO for rollen Anmoder i dokumenttyperne 240 og 241. I Dokumenttyperne 123 og 124 ændret til OO for myndighed, ændret til VV for Bobestyrer og Kurator og ændret til VO for Anmoder"]
["20.12.2016","Tilføjet ægtefælle som VV i dokumenttype 64, 65 og 67 - og VO i ekstype 66"]
["14.03.2017","Dokumenttypen 236 (udvidelse relaksation hæftelse løsøre) har fået ændret Debitor og Kreditor til OO roller, og fået fjernet Anmoder."]
["21.03.2017","Dokumenttype 242 (forevis dokumentation) har fået tilføjet rollen myndighed med VO"]
["10.06.2017","Dokumenttype 227. Fremtidsfuldmagt og 229. AktualiserFremtidsfuldmagt indført i forbindelse med Release 28"]
["23.08.2017","Dokumenttype 227 - Fuldmagtsgiver ændret til OO"]
["18.11.2017","Dokumenttype 117 - Myndighed ændret til OO"]
["16.01.2018","Dokumenttype 48 - Bortforpagter ændret fra OV til OO"]
["25.04.2018","Dokumenttype Ny Påtaleberettiget har fået Udtrædende Påtaleberettiget angivet til VO igen"]
["29.05.2018","Dokumenttype 1 og 3 Endeligt og betinget skøde har nu fået tilknyttet Landinspektør som VO"]
["09.06.2018","Dokumenttyperne 41 og 50 har ændret navn til hhv Vedtægter og Servitut jf. VUA088"]
["26.06.2018","Dokumenttype 184 har fået fjernet rollen landinspektør og har fået indsat anmoder som OO"]
["09.10.2018","Dokumentype 184. Dommerattest har fået rollen myndighed som VV"]
["01.01.2019","Dokumenttype 50, 118 og 245 har fået ejer angivet som oo - der skal blot markeres i skal ikke underskrives"]
["08.01.2019","Dokumenttype 118 ændret til oo"]
["06.03.2019","Dokumenttype 117 har fået rollen Boet efter afdøde (vo)"]
["15.06.2019","Ny dokumenttype Værdierklæring (248) indsat OO for sælger, VO for køber og anmoder"]
["15.11.2019","Slettet alle andre roller end myndighed på Ekstype 187 Afgiftsberigtigelse"]
["14.03.2020","Fjernet rollen fuldmagtshaver på Ekspeditionstype 11 og 80, da denne er en implicit fuldmagtshaver og ikke skal kunne vælges i listen under Andre roller på tinglysning.dk. "]
["10.06.2020","Ny dokumenttype 250 MatrikulærBerigtigelse"]
["30.06.2020","Ejendomsdom har fået myndighed som OO og anmoder som VV"]
["14.11.2020","Dokumenttyperne 19, 22, 21, 148 og 237 har skiftet navn "]
["14.11.2020","Dokumenttyperne 171 og 169 har fået Anmoder som VO og disponent som OO"]
["14.11.2020","Dokumenttype 54 har fået køber som OO og Anmoder som VO. Dok.type 51 og 52 (endelig indførsel og respekt adkomst) har fået anmoder ændret til VO"]
["14.11.2020","Dokumenttype 29 Skadesløsbrev Virksomhedspant og 30 Skadesløsbrev Fordringspant har fået debitor som OOX, Dokumenttype 1 Endeligt Skøde og 3 Betinget skøde har fået køber og sælger angivet med OOX"]
["14.11.2020","Dokumenttyperne 102 og 170 i Personbogen har tillige skiftet navn"]
["14.11.2020","Oprettende og påtegnende pant har fået fjernet vo for rollen anden arving og tilføjet vo for boet efter afdøde"]
["14.11.2020","Dokumenttype 117 Auktionsskøde har fået x efter Køber og Myndighed"]
["14.11.2020","Dokumenttype 209 Efterbetaling har fået fjernet alle andre roller end anmoder"]
["14.11.2020","Dokumenttype 192 har fået tilføjet x for rollen disponent. Dok.type 170 har fået anmoder som vo"]
["14.11.2020","Dokumenttype 32,33,34,35,36 og 37 har fået debitor og kreditor som OVX roller, og pantsætter som VOX rolle. 32 og 35 tillige tiltrædende adkomsthaver VOX"]
["19.03.2020 Ny dokumenttype 251 har fået ændret OOX til OO fsva. Kreditor."]
["19.03.2021","Ny dokumenttype 251 OmdannelseTilAfgiftspantebrev,  252 NormalvedtægtFravigelse, Dokumenttype 45 har skiftet navn til PantsætningsforbudPersonbogen"]
["19.03.2021","Dokumenttype 3 har fået ændret fra VO til VOX fsva. Fuldmagtsgiver og fra VV til VVX  fsva Fuldmagtshaver. Dokumenttype 38 har fået ændret fra VO til VOX fsva. Tiltrædende adkomsthaver, Pantsætter og Kautionist."]
["19.03.2021","Dokumenttype 38 har fået ændret fra OV til OO fsva. Debitor."]
["19.03.2021","Dokumenttype 45 har fået ændret fra OO til OOX fsva. Debitor og Påtaleberettiget. Dokumenttyperne 29 og 30 har fået ændret kreditor fra OV til OVX, Kautionist og Pantsætter fra VO til VOX.Dokumenttype 118 har fået ændret Ejer fra OO til OOX Efterlevende ægtefælle og Anden arving har fået ændret fra VO til VOX. Dokumenttype 38 har fået ændret debitor fra OO til OOX og Kreditor fra OV til OVX."]
["19.06.2021","101. omdøbes til AflysningHæftelseBil, 82. omdøbes PåtegningHæftelsePersonbogen, 86. omdøbes ForhøjelsePersonbogen"]
["14.10.2021","Fjernet rollen Bobestyrer og Kurator på dokumenttype 118"]
["19.10.2021","Fjernet rollen Bobestyrer og Kurator på dokumenttype 118"]
["20.11.2021","NedlysningLøsøre (94) omdøbt til NedlysningPersonbogen "]
["20.11.2021","RespektpåtegningBil (57) omdøbt til RespektBil. RespektpåtegningAndel (59) omdøbt til RespektAndel. RespektpåtegningLøsøre (58) omdøbt til RespektPersonbogen."]
["30.11.2021","Dokumenttype 251 OmdannelseTilAfgiftspantebrev har fået knyttet rollen myndighed som vo"]
["19.03.2022","Anden hæftelse (38) har fået kreditor OO"]
["25.10.2022","Dokumenttypen (207) Betinget Bodeling har fået ændret rollen Myndighed fra VV til VO"]
["07.03.2023","Dokumenttypen 207 og 5 har fået Boet efter som VO rolle."]
["10.06.2023","Rollen Udtrædende meddelelseshaver er ændret fra VV til VO på dokumentyperne NyMeddeleleshaver i alle bøger (68, 69, 70 og 71)"]
["12.09.2023","Rollen Udtrædende meddelelseshaver er ændret tilbage fra VO til VV på dokumentyperne NyMeddeleleshaver i alle bøger (68, 69, 70 og 71)"]
["15.06.2024","3 nye dokumenttyper 254, 255, 256. Dokumenttype116 Ejendomsdom omdøbt til AdkomstEjendomsdom"]
["15.06.2024","116 AdkomstEjendomsdom har fået ændret myndighed fra oo til ov og anmoder fra vv til oo"]
["15.06.2024","Anmoder ændret fra vv til vo på dokumenttype 10, 14, 67, 87 og 91"]

{"sheet":"Brugerark","index":2,"n_rows":39,"n_cols":5,"rows_kept":39,"cut":false,"hidden":false,"merged":[]}
[null,"Roller + signatur"]
[]
[]
[]
[]
[]
[]
["Område:","Fast ejendom"]
["Dokumenttype:","1. EndeligtSkøde "]
[]
["Fuldmagtshaver",{"$f":"IF(OR((VLOOKUP($B$9,Dataark2!$A$2:$AW$249,2)=\"\"),(VLOOKUP($B$9,Dataark2!$A$2:$AW$249,2)=\" \")),\"\",VLOOKUP(VLOOKUP($B$9,Dataark2!$A$2:$AW$249,2),Dataark!$F$1:$G$4,2))","v":""},null,"Bobestyrer",{"$f":"IF(OR((VLOOKUP($B$9,Dataark2!$A$2:$AW$249,20)=\"\"),(VLOOKUP($B$9,Dataark2!$A$2:$AW$249,20)=\" \")),\"\",VLOOKUP(VLOOKUP($B$9,Dataark2!$A$2:$AW$249,20),Dataark!$F$1:$G$4,2))","v":"Hvis rolle optræder, er signatur obligatorisk"}]
["Udtrædende fuldmagtshaver",{"$f":"IF(OR((VLOOKUP($B$9,Dataark2!$A$2:$AW$249,3)=\"\"),(VLOOKUP($B$9,Dataark2!$A$2:$AW$249,3)=\" \")),\"\",VLOOKUP(VLOOKUP($B$9,Dataark2!$A$2:$AW$249,3),Dataark!$F$1:$G$4,2))","v":""},null,"Ejer",{"$f":"IF(OR((VLOOKUP($B$9,Dataark2!$A$2:$AW$249,21)=\"\"),(VLOOKUP($B$9,Dataark2!$A$2:$AW$249,21)=\" \")),\"\",VLOOKUP(VLOOKUP($B$9,Dataark2!$A$2:$AW$249,21),Dataark!$F$1:$G$4,2))","v":"Hvis rolle optræder, er signatur obligatorisk"}]
["Fuldmagtsgiver",{"$f":"IF(OR((VLOOKUP($B$9,Dataark2!$A$2:$AW$249,4)=\"\"),(VLOOKUP($B$9,Dataark2!$A$2:$AW$249,4)=\" \")),\"\",VLOOKUP(VLOOKUP($B$9,Dataark2!$A$2:$AW$249,4),Dataark!$F$1:$G$4,2))","v":""},null,"Kurator",{"$f":"IF(OR((VLOOKUP($B$9,Dataark2!$A$2:$AW$249,22)=\"\"),(VLOOKUP($B$9,Dataark2!$A$2:$AW$249,22)=\" \")),\"\",VLOOKUP(VLOOKUP($B$9,Dataark2!$A$2:$AW$249,22),Dataark!$F$1:$G$4,2))","v":"Hvis rolle optræder, er signatur obligatorisk"}]
["Sælger/overdrager",{"$f":"IF(OR((VLOOKUP($B$9,Dataark2!$A$2:$AW$249,5)=\"\"),(VLOOKUP($B$9,Dataark2!$A$2:$AW$249,5)=\" \")),\"\",VLOOKUP(VLOOKUP($B$9,Dataark2!$A$2:$AW$249,5),Dataark!$F$1:$G$4,2))","v":"Obligatorisk rolle med obligatorisk signatur"},null,"Medhjælper",{"$f":"IF(OR((VLOOKUP($B$9,Dataark2!$A$2:$AW$249,23)=\"\"),(VLOOKUP($B$9,Dataark2!$A$2:$AW$249,23)=\" \")),\"\",VLOOKUP(VLOOKUP($B$9,Dataark2!$A$2:$AW$249,23),Dataark!$F$1:$G$4,2))","v":""}]
["Køber/erhverver",{"$f":"IF(OR((VLOOKUP($B$9,Dataark2!$A$2:$AW$249,6)=\"\"),(VLOOKUP($B$9,Dataark2!$A$2:$AW$249,6)=\" \")),\"\",VLOOKUP(VLOOKUP($B$9,Dataark2!$A$2:$AW$249,6),Dataark!$F$1:$G$4,2))","v":"Obligatorisk rolle med obligatorisk signatur"},null,"Påtaleberettiget",{"$f":"IF(OR((VLOOKUP($B$9,Dataark2!$A$2:$AW$249,24)=\"\"),(VLOOKUP($B$9,Dataark2!$A$2:$AW$249,24)=\" \")),\"\",VLOOKUP(VLOOKUP($B$9,Dataark2!$A$2:$AW$249,24),Dataark!$F$1:$G$4,2))","v":"Hvis rolle optræder, er signatur obligatorisk"}]
["Kreditor",{"$f":"IF(OR((VLOOKUP($B$9,Dataark2!$A$2:$AW$249,7)=\"\"),(VLOOKUP($B$9,Dataark2!$A$2:$AW$249,7)=\" \")),\"\",VLOOKUP(VLOOKUP($B$9,Dataark2!$A$2:$AW$249,7),Dataark!$F$1:$G$4,2))","v":""},null,"Udtrædende påtaleberettiget",{"$f":"IF(OR((VLOOKUP($B$9,Dataark2!$A$2:$AW$249,25)=\"\"),(VLOOKUP($B$9,Dataark2!$A$2:$AW$249,25)=\" \")),\"\",VLOOKUP(VLOOKUP($B$9,Dataark2!$A$2:$AW$249,25),Dataark!$F$1:$G$4,2))","v":""}]
["Udtrædende kreditor",{"$f":"IF(OR((VLOOKUP($B$9,Dataark2!$A$2:$AW$249,8)=\"\"),(VLOOKUP($B$9,Dataark2!$A$2:$AW$249,8)=\" \")),\"\",VLOOKUP(VLOOKUP($B$9,Dataark2!$A$2:$AW$249,8),Dataark!$F$1:$G$4,2))","v":""},null,"Landinspektør",{"$f":"IF(OR((VLOOKUP($B$9,Dataark2!$A$2:$AW$249,26)=\"\"),(VLOOKUP($B$9,Dataark2!$A$2:$AW$249,26)=\" \")),\"\",VLOOKUP(VLOOKUP($B$9,Dataark2!$A$2:$AW$249,26),Dataark!$F$1:$G$4,2))","v":"Hvis rolle optræder, er signatur obligatorisk"}]
["Debitor",{"$f":"IF(OR((VLOOKUP($B$9,Dataark2!$A$2:$AW$249,9)=\"\"),(VLOOKUP($B$9,Dataark2!$A$2:$AW$249,9)=\" \")),\"\",VLOOKUP(VLOOKUP($B$9,Dataark2!$A$2:$AW$249,9),Dataark!$F$1:$G$4,2))","v":""},null,"Brugspanthaver",{"$f":"IF(OR((VLOOKUP($B$9,Dataark2!$A$2:$AW$249,27)=\"\"),(VLOOKUP($B$9,Dataark2!$A$2:$AW$249,27)=\" \")),\"\",VLOOKUP(VLOOKUP($B$9,Dataark2!$A$2:$AW$249,27),Dataark!$F$1:$G$4,2))","v":""}]
["Udtrædende debitor",{"$f":"IF(OR((VLOOKUP($B$9,Dataark2!$A$2:$AW$249,10)=\"\"),(VLOOKUP($B$9,Dataark2!$A$2:$AW$249,10)=\" \")),\"\",VLOOKUP(VLOOKUP($B$9,Dataark2!$A$2:$AW$249,10),Dataark!$F$1:$G$4,2))","v":""},null,"Anmoder",{"$f":"IF(OR((VLOOKUP($B$9,Dataark2!$A$2:$AW$249,28)=\"\"),(VLOOKUP($B$9,Dataark2!$A$2:$AW$249,28)=\" \")),\"\",VLOOKUP(VLOOKUP($B$9,Dataark2!$A$2:$AW$249,28),Dataark!$F$1:$G$4,2))","v":"Hvis rolle optræder, er signatur valgfri"}]
["Tiltrædende adkomsthaver",{"$f":"IF(OR((VLOOKUP($B$9,Dataark2!$A$2:$AW$249,11)=\"\"),(VLOOKUP($B$9,Dataark2!$A$2:$AW$249,11)=\" \")),\"\",VLOOKUP(VLOOKUP($B$9,Dataark2!$A$2:$AW$249,11),Dataark!$F$1:$G$4,2))","v":""},null,"Bortforpagter",{"$f":"IF(OR((VLOOKUP($B$9,Dataark2!$A$2:$AW$249,29)=\"\"),(VLOOKUP($B$9,Dataark2!$A$2:$AW$249,29)=\" \")),\"\",VLOOKUP(VLOOKUP($B$9,Dataark2!$A$2:$AW$249,29),Dataark!$F$1:$G$4,2))","v":""}]
["Kautionist",{"$f":"IF(OR((VLOOKUP($B$9,Dataark2!$A$2:$AW$249,12)=\"\"),(VLOOKUP($B$9,Dataark2!$A$2:$AW$249,12)=\" \")),\"\",VLOOKUP(VLOOKUP($B$9,Dataark2!$A$2:$AW$249,12),Dataark!$F$1:$G$4,2))","v":""},null,"Forpagter",{"$f":"IF(OR((VLOOKUP($B$9,Dataark2!$A$2:$AW$249,30)=\"\"),(VLOOKUP($B$9,Dataark2!$A$2:$AW$249,30)=\" \")),\"\",VLOOKUP(VLOOKUP($B$9,Dataark2!$A$2:$AW$249,30),Dataark!$F$1:$G$4,2))","v":""}]
["Pantsætter",{"$f":"IF(OR((VLOOKUP($B$9,Dataark2!$A$2:$AW$249,13)=\"\"),(VLOOKUP($B$9,Dataark2!$A$2:$AW$249,13)=\" \")),\"\",VLOOKUP(VLOOKUP($B$9,Dataark2!$A$2:$AW$249,13),Dataark!$F$1:$G$4,2))","v":""},null,"Udlejer",{"$f":"IF(OR((VLOOKUP($B$9,Dataark2!$A$2:$AW$249,31)=\"\"),(VLOOKUP($B$9,Dataark2!$A$2:$AW$249,31)=\" \")),\"\",VLOOKUP(VLOOKUP($B$9,Dataark2!$A$2:$AW$249,31),Dataark!$F$1:$G$4,2))","v":""}]
["Meddebitor",{"$f":"IF(OR((VLOOKUP($B$9,Dataark2!$A$2:$AW$249,14)=\"\"),(VLOOKUP($B$9,Dataark2!$A$2:$AW$249,14)=\" \")),\"\",VLOOKUP(VLOOKUP($B$9,Dataark2!$A$2:$AW$249,14),Dataark!$F$1:$G$4,2))","v":""},null,"Lejer",{"$f":"IF(OR((VLOOKUP($B$9,Dataark2!$A$2:$AW$249,32)=\"\"),(VLOOKUP($B$9,Dataark2!$A$2:$AW$249,32)=\" \")),\"\",VLOOKUP(VLOOKUP($B$9,Dataark2!$A$2:$AW$249,32),Dataark!$F$1:$G$4,2))","v":""}]
["Ægtefælle",{"$f":"IF(OR((VLOOKUP($B$9,Dataark2!$A$2:$AW$249,15)=\"\"),(VLOOKUP($B$9,Dataark2!$A$2:$AW$249,15)=\" \")),\"\",VLOOKUP(VLOOKUP($B$9,Dataark2!$A$2:$AW$249,15),Dataark!$F$1:$G$4,2))","v":"Hvis rolle optræder, er signatur obligatorisk"},null,"Efterlevende ægtefælle",{"$f":"IF(OR((VLOOKUP($B$9,Dataark2!$A$2:$AW$249,33)=\"\"),(VLOOKUP($B$9,Dataark2!$A$2:$AW$249,33)=\" \")),\"\",VLOOKUP(VLOOKUP($B$9,Dataark2!$A$2:$AW$249,33),Dataark!$F$1:$G$4,2))","v":""}]
["Underpanthaver",{"$f":"IF(OR((VLOOKUP($B$9,Dataark2!$A$2:$AW$249,16)=\"\"),(VLOOKUP($B$9,Dataark2!$A$2:$AW$249,16)=\" \")),\"\",VLOOKUP(VLOOKUP($B$9,Dataark2!$A$2:$AW$249,16),Dataark!$F$1:$G$4,2))","v":""},null,"Anden arving",{"$f":"IF(OR((VLOOKUP($B$9,Dataark2!$A$2:$AW$249,34)=\"\"),(VLOOKUP($B$9,Dataark2!$A$2:$AW$249,34)=\" \")),\"\",VLOOKUP(VLOOKUP($B$9,Dataark2!$A$2:$AW$249,34),Dataark!$F$1:$G$4,2))","v":""}]
["Meddelelseshaver",{"$f":"IF(OR((VLOOKUP($B$9,Dataark2!$A$2:$AW$249,17)=\"\"),(VLOOKUP($B$9,Dataark2!$A$2:$AW$249,17)=\" \")),\"\",VLOOKUP(VLOOKUP($B$9,Dataark2!$A$2:$AW$249,17),Dataark!$F$1:$G$4,2))","v":""},null,"Boet efter afdøde",{"$f":"IF(OR((VLOOKUP($B$9,Dataark2!$A$2:$AW$249,35)=\"\"),(VLOOKUP($B$9,Dataark2!$A$2:$AW$249,35)=\" \")),\"\",VLOOKUP(VLOOKUP($B$9,Dataark2!$A$2:$AW$249,35),Dataark!$F$1:$G$4,2))","v":"Hvis rolle optræder, er signatur obligatorisk"}]
["Udtrædende meddelelseshaver",{"$f":"IF(OR((VLOOKUP($B$9,Dataark2!$A$2:$AW$249,18)=\"\"),(VLOOKUP($B$9,Dataark2!$A$2:$AW$249,18)=\" \")),\"\",VLOOKUP(VLOOKUP($B$9,Dataark2!$A$2:$AW$249,18),Dataark!$F$1:$G$4,2))","v":""},null,"Værge",{"$f":"IF(OR((VLOOKUP($B$9,Dataark2!$A$2:$AW$249,36)=\"\"),(VLOOKUP($B$9,Dataark2!$A$2:$AW$249,36)=\" \")),\"\",VLOOKUP(VLOOKUP($B$9,Dataark2!$A$2:$AW$249,36),Dataark!$F$1:$G$4,2))","v":"Hvis rolle optræder, er signatur obligatorisk"}]
["Myndighed",{"$f":"IF(OR((VLOOKUP($B$9,Dataark2!$A$2:$AW$249,19)=\"\"),(VLOOKUP($B$9,Dataark2!$A$2:$AW$249,19)=\" \")),\"\",VLOOKUP(VLOOKUP($B$9,Dataark2!$A$2:$AW$249,19),Dataark!$F$1:$G$4,2))","v":"Hvis rolle optræder, er signatur obligatorisk"},null,"Disponent",{"$f":"IF(OR((VLOOKUP($B$9,Dataark2!$A$2:$AW$249,37)=\"\"),(VLOOKUP($B$9,Dataark2!$A$2:$AW$249,37)=\" \")),\"\",VLOOKUP(VLOOKUP($B$9,Dataark2!$A$2:$AW$249,37),Dataark!$F$1:$G$4,2))","v":""}]
[]
[null,null,null,null,"Data hentet:"]
[null,null,null,null,{"$f":"NOW()","v":"2024-06-15T11:33:06.350"}]
[]
["Instruktion:"]
[]
["Klik \"opdater\" for at opdatere data:","Opdater"]
[]
["Vælg Område +"]
["Vælg Dokumenttype"]
[" = felter opdateres"]

{"sheet":"Dataark","index":3,"n_rows":108,"n_cols":7,"rows_kept":108,"cut":false,"hidden":false,"merged":[]}
["Fast ejendom","Bilbog","Andelsboligbog","Personbog",null,"OO","Obligatorisk rolle med obligatorisk signatur"]
["1. EndeligtSkøde ","8. PantebrevBil","10. PantebrevAndel","9. PantebrevLøsøre",null,"OV","Obligatorisk rolle med valgfri signatur"]
["2. EndeligtSkødeMageskifte","12. EjerpantebrevBil","14. EjerpantebrevAndel","13. EjerpantebrevLøsøre",null,"VO","Hvis rolle optræder, er signatur obligatorisk"]
["3. BetingetSkøde","20. UnderpantBil","22. UnderpantAndel","21. UnderpantPersonbogen",null,"VV","Hvis rolle optræder, er signatur valgfri"]
["5. Bodeling","26. SkadesløsbrevBil","28. SkadesløsbrevAndel","27. SkadesløsbrevLøsøre"]
["6. AndenAdkomst","33. UdlægBil","34. UdlægAndel","29. SkadesløsbrevVirksomhedspant"]
["7. PantebrevFastEjendom","36. ArrestBil","37. ArrestAndel","30. SkadesløsbrevFordringspant"]
["11. EjerpantebrevFastEjendom","39. EjendomsforbeholdBil","59. RespektAndel","31. Høstpantebrev"]
["19. UnderpantFastEjendom","57. RespektBil","63. KreditorskifteAndel","45. PantsætningsforbudPersonbogen"]
["23. Realkreditpantebrev ","61. KreditorskifteBil","67. DebitorskifteAndel","58. RespektPersonbogen"]
["24. Indekspantebrev","65. DebitorskifteBil","71. NyMeddelelseshaverAndel","62. KreditorskifteLøsøre"]
["25. SkadesløsbrevFastEjendom","69. NyMeddelelseshaverBil","75. NyFuldmagtshaverAndel","66. DebitorskifteLøsøre"]
["32. UdlægFastEjendom","73. NyFuldmagtshaverBil ","79. VilkårsændringAndel","70. NyMeddelelseshaverLøsøre"]
["35. ArrestFastEjendom","77. VilkårsændringBil","83. PåtegningHæftelseAndel","74. NyFuldmagtshaverLøsøre"]
["38. AndenHæftelseFastEjendom","81. PåtegningHæftelseBil","87. ForhøjelseAndel","78. VilkårsændringLøsøre"]
["40. Samejeoverenskomst ","85. ForhøjelseBil","91. UdvidelseHæftelseAndel","82. PåtegningHæftelsePersonbogen"]
["41. Vedtægter","89. UdvidelseHæftelseBil","95. NedlysningAndel","86. ForhøjelsePersonbogen"]
["46. SalgsOgPantsætningsforbud ","93. NedlysningBil","99. RelaksationAndel","90. UdvidelseHæftelseLøsøre"]
["47. Lejekontrakt","97. RelaksationBil","103. AflysningHæftelseAndel","94. NedlysningPersonbogen"]
["48. Forpagtningskontrakt","101. AflysningHæftelseBil","124. MeddelelseAndel","98. RelaksationLøsøre"]
["50. Servitut ","123. MeddelelseBil","149. KæremålAndel","102. AflysningHæftelsePersonbogen"]
["51. EndeligIndførselAdkomst ","147. KæremålBil ","167. PåtegningMeddelelseAndel","144. TinglysningVærgemål"]
["52. RespektAdkomst ","165. PåtegningMeddelelseBil","171. AflysningMeddelelseAndel","145. TinglysningÆgtepagt"]
["54. PåtegningAdkomst ","169. AflysningMeddelelseBil","176. IndkaldelseMortifikationAndel ","148. KæremålPersonbogen"]
["55. AflysningBetingetSkøde ","174. IndkaldelseMortifikationBil ","180. MeddelelseMortifikationAndel","157. MeddelelseBosondringLøsøre"]
["56. RespektHæftelseFastEjendom","178. MeddelelseMortifikationBil","216. UnderpantsætningAndelPaategning","161. MeddelelseRådighedsfratagelseSkiftelovenLoesoere"]
["60. TransportHæftelseFastEjendom","215. UnderpantsætningBilPaategning","221. RelaksationMeddelelseAndel","166. PåtegningMeddelelseLøsøre"]
["64. DebitorskifteFastEjendom","217. RelaksationMeddelelseBil","222. Ny Fuldmagt (Andel)","170. AflysningPersondokument"]
["68. NyMeddelelseshaverFastEjendom","218. Ny Fuldmagt (bil)","224. Tilbagekaldelse Fuldmagt (Andel)","175. IndkaldelseMortifikationLøsøre"]
["72. NyFuldmagtshaverHæftelseFastEjendom","220. Tilbagekaldelse fuldmagt (bil)","234. DigitaliserPantebrevAndel","179. MeddelelseMortifikationLøsøre"]
["76. VilkårsændringHæftelseFastEjendom","233. DigitaliserPantebrevBil","246. AdkomsthavererklæringAndel","188. IndberetningTestamente"]
["80. PåtegningHæftelseFastEjendom",null,null,"189. IndberetningCodicil"]
["84. ForhøjelseFastEjendom",null,null,"190. IndberetningBørnetestamente"]
["88. UdvidelseHæftelseFastEjendom",null,null,"191. AnnullationTestament"]
["92. NedlysningFastEjendom",null,null,"192. PåtegningÆgtepagt"]
["96. RelaksationHæftelseFastEjendom",null,null,"225. RelaksationMeddelelseLøsøre"]
["100. AflysningHæftelseFastEjendom",null,null,"226. Ny fuldmagt (løsøre)"]
["104. RespektServitut ",null,null,"228. Tilbagekaldelse Fuldmagt (løsøre)"]
["105. NyPåtaleberettiget ",null,null,"231. UnderpantsætningLøsørePaategning"]
["106. PåtegningServitut",null,null,"235. DigitaliserPantebrevLøsøre"]
["107. RelaksationServitut ",null,null,"236. UdvidelseRelaksationHæftelseLøsøre"]
["108. AflysningServitut ",null,null,"237. AflysningPantsætningsforbudPersonbogen"]
["109. VielsesattestRådighedsindskrænkende ",null,null,"243. EjerpantebrevVirksomhedspant"]
["110. Tinglysningslovens§20",null,null,"227. Fremtidsfuldmagt"]
["112. Ekspropriation",null,null,"229. AktualiserFremtidsfuldmagt"]
["113. Jordfordeling Foreløbig"]
["114. Jordfordeling Endelig "]
["115. ÆgtepagtAdkomst"]
["116. AdkomstEjendomsdom"]
["117. Auktionsskøde"]
["118. Skifteretsattest "]
["119. Afgiftsgodtgørelse"]
["120. ÆgtepagtSæreje "]
["121. Ejerpant"]
["122. MeddelelseBobestyrerFastEjendom"]
["125. MeddelelseDødsfaldFastEjendom"]
["128. MeddelelseGældssaneringFastEjendom"]
["131. MeddelelseKonkursFastEjendom"]
["134. MeddelelseRådighedsfratagelseKonkurslovenFastEjendom"]
["137. MeddelelseKonfiskationFastEjendom"]
["140. MeddelelseTvangsakkordFastEjendom"]
["143. MeddelelseTvangsauktion "]
["146. KæremålFastEjendom"]
["150. StævningFastEjendom"]
["151. MeddelelseBrugeligPant"]
["152. MeddelelseBeslaglæggelseFastEjendom"]
["159. MeddelelseRådighedsfratagelseSkiftelovenFastEjendom"]
["163. IndkaldelseEjendomsdom"]
["164. PåtegningMeddelelseFastEjendom"]
["168. AflysningMeddelelseFastEjendom"]
["173. IndkaldelseMortifikationFastEjendom"]
["177. MeddelelseMortifikationFastEjendom"]
["181. UnderbladFastEjendom"]
["182. Servituterklæring "]
["183. Uskadelighedsattest"]
["184. Dommerattest"]
["185. MatrikulærÆndring "]
["186. NyBygningLejetGrund"]
["187. Afgiftsberigtigelse"]
["199. BerigtigelseFastEjendom - UDGÅR"]
["203. TinglysningHævd"]
["204. NyFuldmagt"]
["206. Tilbagekaldelse fuldmagt"]
["207. BodelingBetinget "]
["208. Ekspropriation Foreløbig "]
["209. EfterbetalingTinglysningsafgift"]
["210. TinglysningVærgemål"]
["211. SDRO-pantebrev"]
["212. SDO-pantebrev"]
["214. UnderpantRespekt"]
["232. DigitaliserPantebrevFastEjendom"]
["238. MeddelelseRekronstruktionsbehandlingFastEjendom"]
["239. NavneændringAdkomstFastEjendom"]
["240. MeddelelseFastEjendomAdkomst"]
["241. MeddelelseFastEjendomPant"]
["242. ForevisDokumentation"]
["244. AfgiftPantebrevPaategn"]
["245. SkifteretsattestÆgtefælle"]
["247. IndividualiserPantebrev"]
["248. Værdierklæring"]
["249. NoteringAdkomst"]
["250. MatrikulærBerigtigelse"]
["251. OmdannelseTilAfgiftspantebrev"]
["252. NormalvedtægtFravigelse"]
["253. SkadesløsbrevEjendomsskat"]
["254. AnmodningMortifikationPant"]
["255. AnmodningMortifikationServitut"]
["256. AnmodningEjendomsdomm"]

{"sheet":"Dataark2","index":4,"n_rows":215,"n_cols":62,"rows_kept":215,"cut":false,"hidden":false,"merged":[]}
["Dokumenttyper i fast ejendom","Fuldmagtshaver","Udtrædende fuldmagtshaver","Fuldmagtsgiver","Sælger/overdrager","Køber/erhverver","Kreditor","Udtrædende kreditor","Debitor","Udtrædende debitor","Tiltrædende adkomsthaver","Kautionist","Pantsætter","Meddebitor","Ægtefælle","Underpanthaver","Meddelelseshaver","Udtrædende meddelelseshaver","Myndighed","Bobestyrer","Ejer","Kurator","Medhjælper","Påtaleberettiget","Udtrædende påtaleberettiget","Landinspektør","Brugspanthaver","Anmoder","Bortforpagter","Forpagter","Udlejer","Lejer","Efterlevende ægtefælle","Anden arving","Boet efter afdøde","Værge","Disponent"]
["1. EndeligtSkøde "," ",null," ","oox","oox",null,null,null,null,null,null,null,null,"vo",null,null,null,"vo","vo","vo","vo",null,"vo",null,"vo",null,"vv",null,null,null,null," ",null,"vo","vo"]
["10. PantebrevAndel","vv"," ","vo",null,null,"ov",null,"oo",null," ","vo","vo","vo","vo",null,"vv",null,"vo","vo"," ","vo",null,null,null,null,null,"vo",null,null,null,null," ",null,"vo","vo"]
["100. AflysningHæftelseFastEjendom",null,null,null,null,null,"oo",null,"vv",null,null,"vo",null,null,null,"vo",null,null,"vv","vo"," ","vo",null,null,null,null,null,"vv",null,null,null,null,null,null,"vo","vo"]
["101. AflysningHæftelseBil",null,null,null,null,null,"oo",null,"vv",null,null,null,null,null,null,"vo",null,null,"vv","vo"," ","vo",null,null,null,null,null,"vv",null,null,null,null,null,null,"vo","vo"]
["102. AflysningHæftelsePersonbogen",null,null,null,null,null,"oo",null,"vv",null,null,null,null,null,null,"vo",null,null,"vo","vo"," ","vo",null,null,null,null,null,"vv",null,null,null,null,null,null,"vo","vo","vo"]
["103. AflysningHæftelseAndel",null,null,null,null,null,"oo",null,"vv",null,null,null,null,null,null,"vo",null,null,"vv","vo"," ","vo",null,null,null,null,null,"vv",null,null,null,null,null,null,"vo","vo"]
["104. RespektServitut ",null,null,null,null,null,null,null,null,null,null,null,null,null,null,null,null,null,"vo","vo","vv","vo",null,"oo",null,null,null,"vv",null,null,null,null,null,null,"vo","vo"]
["105. NyPåtaleberettiget ",null,null,null,null,null,null,null,null,null,null,null,null,null,null,null,null,null,"vo","vo","vo","vo",null,"vv","vo",null,null,"oo",null,null,null,null,null,null,"vo","vo"]
["106. PåtegningServitut",null,null,null,null,null,null,null,null,null,null,null,null,null,null,null,null,null,"vo","vo","vv","vo",null,"vo","vo","vo",null,"oo","vv","vv","vv","vv",null,null,"vo","vo"]
["107. RelaksationServitut ",null,null,null,null,null,null,null,null,null,null,null,null,null,null,null,null,null,"vo","vo","vv","vo",null,"oo",null,null,null,"vv","vv","vv","vv","vv",null,null,"vo","vo"]
["108. AflysningServitut ",null,null,null,null,null,null,null,null,null,null,null,null,null,null,null,null,null,"vo","vo","vv","vo",null,"oo",null,null,null,"vv","vv","vv","vv","vv",null,null,"vo","vo"]
["109. VielsesattestRådighedsindskrænkende ",null,null,null,null,null,null,null,null,null,null,null,null,null,"ov",null,null,null,"vv","vo"," ","vo",null,null,null,null,null,"oo",null,null,null,null,null,null,null,"vo"]
["11. EjerpantebrevFastEjendom",null," ","vo",null,null,"ov",null,"oo",null,"vo","vo","vo","vo","vo","vv","vv",null,"vo","vo",null,"vo",null,"vo",null,null,null,"vv",null,null,null,null,null,null,"vo","vo"]
["110. Tinglysningslovens§20",null,null,null,null,null,"vv",null,"vv",null,null,null,null,null,null,null,null,null,"vv","vo",null,"vo",null,"vv",null,null,null,"oo",null,null,null,null,null,null,null,"vo","vv"]
["112. Ekspropriation",null,null,null,null,null,null,null,null,null,null,null,null,null,null,null,null,null,"oo","vo",null,"vo",null,null,null,null,null,"vv",null,null,null,null,null,null,null,"vo"]
["113. Jordfordeling Foreløbig",null,null,null,null,null,null,null,null,null,null,null,null,null,null,null,null,null,"oo","vo",null,"vo",null,null,null,null,null,"vv",null,null,null,null,null,null,null,"vo"]
["114. Jordfordeling Endelig ",null,null,null,null,null,null,null,null,null,null,null,null,null,null,null,null,null,"oo","vo",null,"vo",null,null,null,null,null,"vv",null,null,null,null,null,null,null,"vo"]
["115. ÆgtepagtAdkomst",null,null,null,"oo","oo",null,null,null,null,null,null,null,null,null,null,null,null,"vv","vo",null,"vo",null,"vo",null,null,null,"vv",null,null,null,null,null,null,null,"vo"]
["116. AdkomstEjendomsdom",null,null,null,null,null,null,null,null,null,null,null,null,null,null,null,null,null,"ov","vo","ov","vo",null,"vo",null,null,null,"oo",null,null,null,null,null,null,null,"vo"]
["117.  Auktionsskøde",null,null,null,null,"oox",null,null,null,null,null,null,null,null,null,null,null,null,"oox","vo",null,"vo",null,"vo",null,null,null,"vv",null,null,null,null,null,null,null,"vo"]
["118. Skifteretsattest ",null,null,null,null,null,null,null,null,null,null,null,null,null,null,null,null,null,"ov",null,"oox",null,null,"vo",null,null,null,"oo",null,null,null,null,"vox","vox","vo","vo"]
["119. Afgiftsgodtgørelse",null,null,null,null,null,null,null,null,null,null,null,null,null,null,null,null,null,"vv","vo"," ","vo",null,null,null,null,null,"oo",null,null,null,null," "," "," ","vo"]
["12. EjerpantebrevBil","vv"," ","vo",null,null,"ov",null,"oo",null," ","vo","vo","vo","vo","vv","vv",null,"vo","vo"," ","vo",null,null,null,null,null,"vv",null,null,null,null," ",null,"vo","vo"]
["120. ÆgtepagtSæreje ",null,null,null,null,null,null,null,null,null,null,null,null,null,null,null,null,null,"vv","vo","ov","vo",null,null,null,null,null,"oo",null,null,null,null,null,null,null,"vo"]
["121. Ejerpant",null,null,null,null,null,null,null,null,null,null,null,null,null,null,null,null,null,"vv","vo","oo","vo",null,"vo",null,null,null,"vv",null,null,null,null,null,null,null,"vo"]
["122. MeddelelseBobestyrerFastEjendom",null,null,null,null,null,null,null,null,null,null,null,null,null,null,null,null,null,"oo","ov","ov","vo",null,null,null,null,null,"vv",null,null,null,null,null,null,null,"vo"]
["123. MeddelelseBil",null,null,null,null,null,null,null,"ov",null,null,null,null,null,null,null,null,null,"oo","vv"," ","vv",null,null,null,null,null,"vo",null,null,null,null,null,null,null,"vo","ov"]
["124. MeddelelseAndel",null,null,null,null,null,null,null,"ov",null,null,null,null,null,null,null,null,null,"oo","vv"," ","vv",null,null,null,null,null,"vo",null,null,null,null,null,null,null,"vo","ov"]
["125. MeddelelseDødsfaldFastEjendom",null,null,null,null,null,null,null,null,null,null,null,null,null,null,null,null,null,"oo","vo","ov","vo",null,null,null,null,null,"vv",null,null,null,null,null,null,null,"vo"]
["128. MeddelelseGældssaneringFastEjendom",null,null,null,null,null,null,null,null,null,null,null,null,null,null,null,null,null,"ov ","vo","ov","vo","ov",null,null,null,null,"oo",null,null,null,null,null,null,null,"vo"]
["13. EjerpantebrevLøsøre","vv"," ","vo",null,null,"ov",null,"oo",null," ","vo","vo","vo","vo","vv","vv",null,"vo","vo"," ","vo",null,"vo",null,null,null,"vv",null,null,null,null," ",null,"vo","vo"]
["131. MeddelelseKonkursFastEjendom",null,null,null,null,null,null,null,null,null,null,null,null,null,null,null,null,null,"oo","vo","ov","ov",null,null,null,null,null,"vv",null,null,null,null,null,null,null,"vo"]
["134. MeddelelseRådighedsfratagelseKonkurslovenFastEjendom",null,null,null,null,null,null,null,null,null,null,null,null,null,null,null,null,null,"oo","vo","ov","vo",null,null,null,null,null,"vv",null,null,null,null,null,null,null,"vo"]
["137. MeddelelseKonfiskationFastEjendom",null,null,null,null,null,null,null,null,null,null,null,null,null,null,null,null,null,"oo","vo","ov","vo",null,null,null,null,null,"vv",null,null,null,null,null,null,null,"vo"]
["14. EjerpantebrevAndel","vv"," ","vo",null,null,"ov",null,"oo",null," ","vo","vo","vo","vo","vv","vv",null,"vo","vo"," ","vo",null,null,null,null,null,"vo",null,null,null,null," ",null,"vo","vo"]
["140. MeddelelseTvangsakkordFastEjendom",null,null,null,null,null,null,null,null,null,null,null,null,null,null,null,null,null,"ov","vo","ov","vo","ov",null,null,null,null,"oo",null,null,null,null,null,null,null,"vo"]
["143. MeddelelseTvangsauktion ",null,null,null,null,null,null,null,null,null,null,null,null,null,null,null,null,null,"oo","vo","ov","vo"," ",null,null,null,null,"vv",null,null,null,null,null,null,null,"vo"]
["144. TinglysningVærgemål",null,null,null,null,null,null,null,null,null,null,null,null,null,null,null,null,null,"vv","vo",null,"vo",null,null,null,null,null,"vv",null,null,null,null,null,null,null,"oo","ovx"]
["145. TinglysningÆgtepagt",null,null,null,null,null,null,null,null,null,null,null,null,null,null,null,null,null,"vv","vo",null,"vo",null,null,null,null,null,"vv",null,null,null,null,null,null,null,"vo","oox"]
["146. KæremålFastEjendom",null,null,null,null,null,null,null,null,null,null,null,null,null,null,null,null,null,"vv","vo"," ","vo",null,null,null,null,null,"oo",null,null,null,null,null,null,null,"vo"]
["147. KæremålBil ",null,null,null,null,null,null,null,null,null,null,null,null,null,null,null,null,null,"vv","vo"," ","vo",null,null,null,null,null,"oo",null,null,null,null,null,null,null,"vo"]
["148. KæremålPersonbogen",null,null,null,null,null,null,null,null,null,null,null,null,null,null,null,null,null,"vv","vo"," ","vo",null,null,null,null,null,"oo",null,null,null,null,null,null,null,"vo"]
["149. KæremålAndel",null,null,null,null,null,null,null,null,null,null,null,null,null,null,null,null,null,"vv","vo"," ","vo",null,null,null,null,null,"oo",null,null,null,null,null,null,null,"vo"]
["150. StævningFastEjendom",null,null,null,null,null,null,null,null,null,null,null,null,null,null,null,null,null,"vo","vo",null,"vo",null,null,null,null,null,"oo",null,null,null,null,null,null,null,"vo"]
["151. MeddelelseBrugeligPant",null,null,null,null,null,"vo",null,null,null,null,null,null,null,null,null,null,null,"ov","vo","ov","vo",null,null,null,null,"ov","oo",null,null,null,null,null,null,null,"vo"]
["152. MeddelelseBeslaglæggelseFastEjendom",null,null,null,null,null,null,null,null,null,null,null,null,null,null,null,null,null,"oo","vo",null,"vo",null,null,null,null,null,"vv",null,null,null,null,null,null,null,"vo"]
["157. MeddelelseBosondringLøsøre",null,null,null,null,null,null,null,null,null,null,null,null,null,null,null,null,null,"oo","vo",null,"vo",null,null,null,null,null,"vv",null,null,null,null,null,null,null,"vo","ov"]
["159. MeddelelseRådighedsfratagelseSkiftelovenFastEjendom",null,null,null,null,null,null,null,null,null,null,null,null,null,null,null,null,null,"oo","vo","ov","vo",null,null,null,null,null,"vv",null,null,null,null,null,null,null,"vo"]
["161. MeddelelseRådighedsfratagelseSkiftelovenLoesoere",null,null,null,null,null,null,null,null,null,null,null,null,null,null,null,null,null,"oo","vo",null,"vo",null,null,null,null,null,"vv",null,null,null,null,null,null,null,"vo","ov"]
["163. IndkaldelseEjendomsdom",null,null,null,null,null,null,null,null,null,null,null,null,null,null,null,null,null,"oo                      ","vo"," ","vo"," ",null,null,null,null,"vv",null,null,null,null,null,null,null,"vo"]
["164. PåtegningMeddelelseFastEjendom",null,null,null,null,null,null,null,null,null,null,null,null,null,null,null,null,null,"vo","vo","vv","vo",null,null,null,null,null,"oo",null,null,null,null,null,null,null,"vo"]
["165. PåtegningMeddelelseBil",null,null,null,null,null,null,null,null,null,null,null,null,null,null,null,null,null,"vo","vo"," ","vo",null,null,null,null,null,"vv",null,null,null,null,null,null,null,"vo","oo"]
["166. PåtegningMeddelelseLøsøre",null,null,null,null,null,null,null,null,null,null,null,null,null,null,null,null,null,"oo","vo",null,"vo",null,null,null,null,null,"vv",null,null,null,null,null,null,null,"vo"]
["167. PåtegningMeddelelseAndel",null,null,null,null,null,null,null,null,null,null,null,null,null,null,null,null,null,"vo","vo"," ","vo",null,null,null,null,null,"vv",null,null,null,null,null,null,null,"vo","oo"]
["168. AflysningMeddelelseFastEjendom",null,null,null,null,null,null,null,null,null,null,null,null,null,"vo",null,null,null,"vo","vo",null,"vo",null,null,null,null,null,"oo",null,null,null,null,null,null,null,"vo"]
["169. AflysningMeddelelseBil",null,null,null,null,null,null,null,null,null,null,null,null,null,null,null,null,null,"vo","vo"," ","vo",null,null,null,null,null,"vo",null,null,null,null,null,null,null,"vo","oo"]
["170. AflysningPersondokument",null,null,null,null,null,null,null,null,null,null,null,null,null,null,null,null,null,"oo","vo",null,"vo",null,null,null,null,null,"vo",null,null,null,null,null,null,null,"vo"]
["171. AflysningMeddelelseAndel",null,null,null,null,null,null,null,null,null,null,null,null,null,null,null,null,null,"vo","vo",null,"vo",null,null,null,null,null,"vo",null,null,null,null,null,null,null,"vo","oo"]
["173. IndkaldelseMortifikationFastEjendom",null,null,null,null,null,null,null,null,null,null,null,null,null,null,null,null,null,"oo                      ","vo",null,"vo",null,null,null,null,null,"vv",null,null,null,null,null,null,null,"vo"]
["174. IndkaldelseMortifikationBil ",null,null,null,null,null,null,null,null,null,null,null,null,null,null,null,null,null,"oo                      ","vo"," ","vo",null,null,null,null,null,"vv",null,null,null,null,null,null,null,"vo"]
["175. IndkaldelseMortifikationLøsøre",null,null,null,null,null,null,null,null,null,null,null,null,null,null,null,null,null,"oo","vo",null,"vo",null,null,null,null,null,"vv",null,null,null,null,null,null,null,"vo"]
["176. IndkaldelseMortifikationAndel ",null,null,null,null,null,null,null,null,null,null,null,null,null,null,null,null,null,"oo                      ","vo",null,"vo",null,null,null,null,null,"vv",null,null,null,null,null,null,null,"vo"]
["177. MeddelelseMortifikationFastEjendom",null,null,null,null,null,null,null,null,null,null,null,null,null,null,null,null,null,"vv","vo",null,"vo",null,null,null,null,null,"oo",null,null,null,null,null,null,null,"vo"]
["178. MeddelelseMortifikationBil",null,null,null,null,null,null,null,null,null,null,null,null,null,null,null,null,null,"vv","vo",null,"vo",null,null,null,null,null,"oo",null,null,null,null,null,null,null,"vo"]
["179. MeddelelseMortifikationLøsøre",null,null,null,null,null,null,null,null,null,null,null,null,null,null,null,null,null,"vv","vo",null,"vo",null,null,null,null,null,"oo",null,null,null,null,null,null,null,"vo"]
["180. MeddelelseMortifikationAndel",null,null,null,null,null,null,null,null,null,null,null,null,null,null,null,null,null,"vv","vo",null,"vo",null,null,null,null,null,"oo",null,null,null,null,null,null,null,"vo"]
["181. UnderbladFastEjendom",null,null,null,null,null,null,null,null,null,null,null,null,null,null,null,null,null,"vv","vo","ov","vo",null,null,null,"vv",null,"oo",null,null,null,null,null,null,null,"vo"]
["182. Servituterklæring ",null,null,null,null,null,null,null,null,null,null,null,null,null,null,null,null,null,"vv","vo"," ","vo",null,null,null,"oo",null,"vv",null,null,null,null,null,null,null,"vo"]
["183. Uskadelighedsattest",null,null,null,null,null,null,null,null,null,null,null,null,null,null,null,null,null,"vv","vo",null,"vo",null,null,null,"oo",null,"vv",null,null,null,null,null,null,null,"vo"]
["184. Dommerattest",null,null,null,null,null,null,null,null,null,null,null,null,null,null,null,null,null,"vv","vo",null,"vo",null,null,null,null,null,"oo",null,null,null,null,null,null,null,"vo"]
["185. MatrikulærÆndring ",null,null,null,null,null,null,null,null,null,null,null,null,null,null,null,null,null,"oo","vo",null,"vo",null,null,null,"vv",null,"vv",null,null,null,null,null,null,null,"vo"]
["186. NyBygningLejetGrund",null,null,null,null,null,null,null,null,null,null,null,null,null,null,null,null,null,"vv","vo","ov","vo",null,null,null,"vv",null,"oo",null,null,null,null,null,null,null,"vo"]
["187. Afgiftsberigtigelse",null,null,null,null,null,null,null,null,null,null,null,null,null,null,null,null,null,"oo                    "]
["188. IndberetningTestamente",null,null,null,null,null,null,null,null,null,null,null,null,null,null,null,null,null,"oo","vo",null,"vo",null,null,null,null,null,"vv",null,null,null,null,null,null,null,"vo","oo"]
["189. IndberetningCodicil",null,null,null,null,null,null,null,null,null,null,null,null,null,null,null,null,null,"oo","vo",null,"vo",null,null,null,null,null,"vv",null,null,null,null,null,null,null,"vo","oo"]
["19. UnderpantFastEjendom",null,null,null,null,null,"oo",null,"vv",null,null," ",null,null," ","ov"," ",null,"vv","vo",null,"vo",null,null,null,null,null,"vv",null,null,null,null,null,null,"vo","vo"]
["190. IndberetningBørnetestamente",null,null,null,null,null,null,null,null,null,null,null,null,null,null,null,null,null,"oo","vo",null,"vo",null,null,null,null,null,"vv",null,null,null,null,null,null,null,"vo","oo"]
["191. AnnullationTestament",null,null,null,null,null,null,null,null,null,null,null,null,null,null,null,null,null,"oo","vo",null,"vo",null,null,null,null,null,"vv",null,null,null,null,null,null,null,"vo","oo"]
["192. PåtegningÆgtepagt",null,null,null,null,null,null,null,null,null,null,null,null,null,null,null,null,null,"vv","vo",null,"vo",null,null,null,null,null,"vv",null,null,null,null,null,null,null,"vo","oox"]
["199. BerigtigelseFastEjendom - UDGÅR",null,null,null,null,null,null,null,null,null,null,null,null,null,null,null,null,null,"vv","vo",null,"vo",null,null,null,null,null,"vv",null,null,null,null,null,null,null,"vo"]
["2. EndeligtSkødeMageskifte"," "," "," ","oo","oo",null,null,null,null,null,null,null,null,"vo",null,null,null,"vo","vo","vo","vo",null,null,null,null,null,"vv",null,null,null,null," "," "," ","vo"]
["20. UnderpantBil",null,null,null,null,null,"oo",null,"vv",null," "," ",null,null," ","ov"," ",null,"vv","vo",null,"vo",null,null,null,null,null,"vv",null,null,null,null,null,null,"vo","vo"]
["203. TinglysningHævd",null,null,null,null,"ov",null,null,null,null,null,null,null,null,null,null,null,null,"vv","vo",null,"vo",null,"vo",null,null,null,"oo",null,null,null,null,null,null,null,"vo"]
["204. NyFuldmagt","ov",null,"oo",null,null," ",null," ",null," "," "," ",null," "," ","ov"," "]
["206. Tilbagekaldelse fuldmagt","ov",null,"oo"]
["207. BodelingBetinget ","vv",null,"vo","oo","oo",null,null,null,null,null,null,null,null,null,null,null,null,"vo","vo",null,"vo",null,"vo",null,null,null,"vv",null,null,null,null,null,null,"vo","vo"]
["208. Ekspropriation Foreløbig ",null,null,null,null,null,null,null,null,null,null,null,null,null,null,null,null,null,"oo","vo"," ","vo",null,null,null,null,null,"vv",null,null,null,null,null,null,null,"vo"]
["209. EfterbetalingTinglysningsafgift",null,null,null,null,null,null,null,null,null,null,null,null,null,null,null,null,null,null,null,null,null,null,null,null,null,null,"oo"]
["21. UnderpantPersonbogen",null,null,null,null,null,"oo",null,"vv",null," "," ",null,null," ","ov"," ",null,"vv","vo",null,"vo",null,"vo",null,null,null,"vv",null,null,null,null,null,null,"vo","vo"]
["210. TinglysningVærgemål",null,null,null,null,null,null,null,null,null,null,null,null,null,null,null,null,null,"vv","vo","ov","vo",null,null,null,null,null,null,null,null,null,null,null,null,null,"oo"]
["211. SDRO-pantebrev",null," ",null,null,null,"ov",null,"oo",null,"vo","vo","vo","vo","vo",null,null,null,"vo","vo",null,"vo",null,"vo",null,null,null,"vv",null,null,null,null,null,null,"vo","vo"]
["212. SDO-pantebrev","vv"," ","vo",null,null,"ov",null,"oo",null,"vo","vo","vo","vo","vo",null,"vv",null,"vo","vo",null,"vo",null,"vo",null,null,null,"vv",null,null,null,null,null,null,"vo","vo"]
["214. UnderpantRespekt",null,null,null,null,null,"oo",null,null,null,null,null,null,null,null,null,null,null,"vv","vo",null,"vo",null,null,null,null,null,"vv",null,null,null,null,null,null,"vo","vo"]
["215. UnderpantsætningBilPaategning",null,null,null,null,null,"oo",null,null,null,null,null,null,null,null,null,null,null,"vv","vo",null,"vo",null,null,null,null,null,"vv",null,null,null,null,null,null,"vo","vo"]
["216. UnderpantsætningAndelPaategning",null,null,null,null,null,"oo",null,null,null,null,null,null,null,null,null,null,null,"vv","vo",null,"vo",null,null,null,null,null,"vv",null,null,null,null,null,null,"vo","vo",null,null,null,null,null,null,null,null,null,null,null,null,null,null,null,null,null,null,null,null,null,null,null,null,null,{"$f":"-AH105:AH106","v":{"$error":"#VALUE!"}}]
["217. RelaksationMeddelelseBil",null,null,null,null,null,null,null,null,null,null,null,null,null,null,null,null,null,"vv","vo",null,"vo",null,null,null,null,null,"oo",null,null,null,null,null,null,null,"vo","vo"]
["218. Ny Fuldmagt (bil)","ov",null,"oo",null,null,null,null,null,null,null,null,null,null,null,null,"ov"]
["22. UnderpantAndel",null,null,null,null,null,"oo",null,"vv",null,null," ",null,null," ","ov"," ",null,"vv","vo",null,"vo",null,null,null,null,null,"vv",null,null,null,null,null,null,"vo","vo"]
["220. Tilbagekaldelse fuldmagt (bil)","ov",null,"oo"]
["221. RelaksationMeddelelseAndel",null,null,null,null,null,null,null,null,null,null,null,null,null,null,null,null,null,"vv","vo",null,"vo",null,null,null,null,null,"oo",null,null,null,null,null,null,null,"vo","vo"]
["222. Ny Fuldmagt (Andel)","ov",null,"oo",null,null,null,null,null,null,null,null,null,null,null,null,"ov"]
["224. Tilbagekaldelse Fuldmagt (Andel)","ov",null,"oo"]
["225. RelaksationMeddelelseLøsøre",null,null,null,null,null,null,null,null,null,null,null,null,null,null,null,null,null,"vv","vo",null,"vo",null,null,null,null,null,"oo",null,null,null,null,null,null,null,"vo","oo"]
["226. Ny fuldmagt (løsøre)","ov",null,"oo",null,null,null,null,null,null,null,null,null,null,null,null,"ov"]
["227. Fremtidsfuldmagt","ov",null,"oo",null,null,null,null,null,null,null,null,null,null,null,null,null,null,"ov"]
["228. Tilbagekaldelse Fuldmagt (løsøre)","vv",null,"oo"]
["229. AktualiserFremtidsfuldmagt","vv",null,"vv",null,null,null,null,null,null,null,null,null,null,null,null,null,null,"oo"]
["23. Realkreditpantebrev ",null," ",null,null,null,"ov",null,"oo",null,"vo","vo","vo","vo","vo",null,null,null,"vo","vo",null,"vo",null,"vo",null,null,null,"vv",null,null,null,null,null,null,"vo","vo"]
["231. UnderpantsætningLøsørePaategning",null,null,null,null,null,"oo",null,null,null,null,null,null,null,null,null,null,null,"vv","vo",null,"vo",null,null,null,null,null,"vv",null,null,null,null,null,null,"vo","vo"]
["232. DigitaliserPantebrevFastEjendom","vv",null,null,null,null,"vv",null,"vv",null,null,null,null,null,null,"vv","vv",null,"vv","vo",null,"vo",null,null,null,null,null,"oo",null,null,null,null,null,null,null,"vo"]
["233. DigitaliserPantebrevBil","vv",null,null,null,null,"vv",null,"vv",null,null,null,null,null,null,"vv","vv",null,"vv","vo",null,"vo",null,null,null,null,null,"oo",null,null,null,null,null,null,null,"vo"]
["234. DigitaliserPantebrevAndel","vv",null,null,null,null,"vv",null,"vv",null,null,null,null,null,null,"vv","vv",null,"vv","vo",null,"vo",null,null,null,null,null,"oo",null,null,null,null,null,null,null,"vo"]
["235. DigitaliserPantebrevLøsøre","vv",null,null,null,null,"vv",null,"vv",null,null,null,null,null,null,"vv","vv",null,"vv","vo",null,"vo",null,null,null,null,null,"oo",null,null,null,null,null,null,null,"vo"]
["236. UdvidelseRelaksationHæftelseLøsøre",null,null,null,null,null,"oo",null,"oo",null,null,"vo",null,null,null,"vo",null,null,"vv","vo",null,"vo",null,"vo",null,null,null,null,null,null,null,null,null,null,"vo","vo"]
["237. AflysningPantsætningsforbudPersonbogen",null,null,null,null,null,null,null,null,null,null,null,null,null,null,null,null,null,"vo","vo",null,"vo",null,"oo",null,null,null,"vv",null,null,null,null,null,null,"vo","vo"]
["238. MeddelelseRekonstruktionsbehandlingFastEjendom",null,null,null,null,null,null,null,null,null,null,null,null,null,null,null,null,null,"oo","vo","ov","ov",null,null,null,null,null,"vv",null,null,null,null,null,null,null,"vo"]
["239. NavneændringAdkomstFastEjendom",null,null,null,null,"oo",null,null,null,null,null,null,null,null,"vo",null,null,null,"vo","vo",null,"vo",null,null,null,null,null,"oo",null,null,null,null,null,null,null,"vo"]
["24. Indekspantebrev",null," ",null,null,null,"ov",null,"oo",null,"vo","vo","vo","vo","vo",null,"vv",null,"vo","vo",null,"vo",null,"vo",null,null,null,"vv",null,null,null,null,null,null,"vo","vo"]
["240. MeddelelseFastEjendomAdkomst",null,null,null,null,null,null,null,null,null,null,null,null,null,null,null,null,null,"oo","vv","ov","vv","vv",null,null,null,"vv","vo",null,null,null,null,null,null,null,"vo"]
["241. MeddelelseFastEjendomPant",null,null,null,null,null,"ov",null,null,null,null,null,null,null,null,null,null,null,"oo","vv",null,null,"vv",null,null,null,null,"vo",null,null,null,null,null,null,null,"vo"]
["242. ForevisDokumentation",null,null,null,null,null,null,null,null,null,null,null,null,null,null,null,null,null,"vo",null,null,null,null,null,null,null,null,"oo"]
["243. EjerpantebrevVirksomhedspant","vv"," ","vo",null,null,"ov",null,"oo",null," ","vo","vo","vo","vo","vv","vv",null,"vo","vo"," ","vo",null,"vo",null,null,null,"vv",null,null,null,null," ",null,"vo","vo"]
["244. AfgiftPantebrevPaategn",null,null,null,null,null,null,null,null,null,null,null,null,null,null,null,null,null,null,null,null,null,null,null,null,null,null,"oo"]
["245. SkifteretsattestÆgtefælle",null,null,null,null,null,null,null,null,null,null,null,null,null,null,null,null,null,null,null,"oo",null,null,null,null,null,null,"oo",null,null,null,null,"ov"]
["246. AdkomsthavererklæringAndel",null,null,null,null,null,null,null,null,null,null,null,null,null,null,null,null,null,null,null,null,null,null,null,null,null,null,"oo"]
["247. IndividualiserPantebrev"]
["248. Værdierklæring",null,null,null,"oo","vo",null,null,null,null,null,null,null,null,null,null,null,null,null,"vo",null,"vo",null,null,null,null," ","vo"]
["249. NoteringAdkomst",null,null,null,null,"oo",null,null,null,null,null,null,null,null,"vv",null,null,null,null,"vo",null,null,null,null,null,null,null,null,null,null,null,null,null,null,"vo","vo"]
["25. SkadesløsbrevFastEjendom",null,null,null,null,null,"ov",null,"oo",null,"vo","vo","vo","vo","vo",null,"vv",null,"vo","vo",null,"vo",null,"vo",null,null,null,"vv",null,null,null,null,null,null,"vo","vo"]
["250. MatrikulærBerigtigelse",null,null,null,null,null,null,null,null,null,null,null,null,null,null,null,null,null,"oo","vo",null,"vo",null,null,null,"vv",null,"vv",null,null,null,null,null,null,null,"vo"]
["251. OmdannelseTilAfgiftspantebrev",null,null,null,null,null,"oo",null,null,null,null,null,null,null,null,"vo",null,null,"vo","vo",null,"vo",null,null,null,null,null,"vv",null,null,null,null,null,null,"vo","vo"]
["252. NormalvedtægtFravigelse",null,null," ",null,null,null,null,null,null,null,null,null,null,null,null,null,null,"vo","vo","vv","vo",null,"ov",null,null,null,"oo",null,null,null,null,null,null,"vo","vo"]
["253. SkadesløsbrevEjendomsskat",null,null,null,null,null,"vv",null,"ov"]
["254. AnmodningMortifikationPant","vo",null,null,null,null,"ov",null,"vv",null,null,null,null,"vv",null,"vv","vv",null,null,"vo","vv","vo",null,null,null,null,null,"oo",null,null,null,null,null,null,"vo","vo","vv"]
["255. AnmodningMortifikationServitut",null,null,null,null,null,null,null,null,null,null,null,null,null,null,null,null,null,"vv","vo","vo","vo",null,"vv",null,null,null,"oo",null,null,null,null,null,null,"vo","vo"]
["256. AnmodningEjendomsdom",null,null,null,null,null,null,null,null,null,null,null,null,null,null,null,null,null,null,null,null,null,null,null,null,null,null,"oo"]
["26. SkadesløsbrevBil",null," ",null,null,null,"ov",null,"oo",null," ","vo","vo","vo","vo",null,"vv",null,"vo","vo"," ","vo",null,null,null,null,null,"vv",null,null,null,null," ",null,"vo","vo"]
["27. SkadesløsbrevLøsøre",null," ",null,null,null,"ov",null,"oo",null," ","vo","vo","vo","vo",null,"vv",null,"vo","vo"," ","vo",null,"vo",null,null,null,"vv",null,null,null,null," "," ","vo","vo"]
["28. SkadesløsbrevAndel",null," ",null,null,null,"ov",null,"oo",null," ","vo","vo","vo","vo",null,"vv",null,"vo","vo"," ","vo",null,null,null,null,null,"vv",null,null,null,null," ",null,"vo","vo"]
["29. SkadesløsbrevVirksomhedspant",null," ",null,null,null,"ovx",null,"oox",null," ","vox","vox","vo","vo",null,"vv",null,"vo","vo"," ","vo",null,"vo",null,null,null,"vv",null,null,null,null," "," ","vo","vo"]
["3. BetingetSkøde","vvx",null,"vox","oox","oox",null,null,null,null,null,null,null,null,"vo",null,null,null,"vo","vo","vo","vo",null,"vo",null,"vo",null,"vv",null,null,null,null," ",null,"vo","vo"]
["30. SkadesløsbrevFordringspant",null," ",null,null,null,"ovx",null,"oox",null," ","vox","vox","vo","vo",null,"vv",null,"vo","vo"," ","vo",null,"vo",null,null,null,"vv",null,null,null,null," "," ","vo","vo"]
["31. Høstpantebrev",null," ",null,null,null,"ov",null,"oo",null," ","vo","vo",null,"vo",null,"vv",null,"vo","vo"," ","vo",null,"vo",null,null,null,"vv",null,null,null,null," "," ","vo","vo"]
["32. UdlægFastEjendom",null,null,null,null,null,"ovx",null,"ovx",null,"vox"," ","vox",null,null,null,null,null,"oo","vo",null,"vo",null,null,null,null,null,"vv",null,null,null,null,null,null,null,"vo"]
["33. UdlægBil",null,null,null,null,null,"ovx",null,"ovx",null," "," ","vox",null,null,null,null,null,"oo","vo",null,"vo",null,null,null,null,null,"vv",null,null,null,null,null,null,null,"vo"]
["34. UdlægAndel",null,null,null,null,null,"ovx",null,"ovx",null," "," ","vox",null,null,null,null,null,"oo","vo",null,"vo",null,null,null,null,null,"vv",null,null,null,null,null,null,null,"vo"]
["35. ArrestFastEjendom",null,null,null,null,null,"ov",null,"ov",null,"vv",null,"vo",null,null,null,null,null,"oo","vo",null,"vo",null,null,null,null,null,"vv",null,null,null,null,null,null,null,"vo"]
["36. ArrestBil",null,null,null,null,null,"ovx",null,"ovx",null," ",null,"vox",null,null,null,null,null,"oo","vo",null,"vo",null,null,null,null,null,"vv",null,null,null,null,null,null,null,"vo"]
["37. ArrestAndel",null,null,null,null,null,"ovx",null,"ovx",null," ",null,"vox",null,null,null,null,null,"oo","vo",null,"vo",null,null,null,null,null,"vv",null,null,null,null,null,null,null,"vo"]
["38. AndenHæftelseFastEjendom",null,null,null,null,null,"oox",null,"oox",null,"vox","vox","vox",null,"vo","vv","vv",null,"vo","vo",null,"vo",null,"vo",null,null,null,"oo",null,null,null,null,null,null,"vo","vo"]
["39. EjendomsforbeholdBil","vv"," ","vo",null,null,"ov",null,"oo",null," ","vo","vo","vo","vo",null,null,null,"vo","vo"," ","vo",null,null,null,null,null,"vv",null,null,null,null," ",null,null,"vo"]
["40. Samejeoverenskomst "," ",null,null," "," ",null,null,null,null,null,null,null,null,null,null,null,null,"vv","vo","oo","vo",null,"ov",null,null,null,"vv",null,null,null,null,null,null,"vo","vo"]
["41. Vedtægter",null,null," ",null,null,null,null,null,null,null,null,null,null,null,null,null,null,"vo","vo","vv","vo",null,"ov",null,null,null,"oo",null,null,null,null,null,null,"vo","vo"]
["45. PantsætningsforbudPersonbogen  ",null," ",null,null,null,null,null,"oox",null," ",null,null,null,null,null,null,null,"vv","vo",null,"vo",null,"ovx",null,null,null,"vv",null,null,null,null," "," ","vo","vo"]
["46. SalgsOgPantsætningsforbud "," ",null," ",null,null,"vv",null,"vv",null,null,null,null,null,null,null,null,null,"vv","vo","oo","vo",null,"ov",null,null,null,"vv",null,null,null,null,null,null,"vo","vo"]
["47. Lejekontrakt"," ",null," ",null,null,null,null,null,null," ",null,null,null,"vv",null,null,null,"vo","vo","vo","vo",null,"ov",null,"vv",null,"vv",null,null,"oo","oo",null,null,"vo","vo"]
["48. Forpagtningskontrakt"," ",null," ",null,null,null,null,null,null," ",null,null,null,"vv",null,null,null,"vo","vo","vo","vo",null,"ov",null,"vv",null,"vv","oo","oo",null,null,null,null,"vo","vo"]
["5. Bodeling",null,null,null,"oo","oo",null,null,null,null,null,null,null,null,null,null,null,null,"vo","vo","vo","vo",null,"vo",null,null,null,"vv",null,null,null,null,null,null,"vo","vo"]
["50. Servitut "," ",null," ",null,null,null,null,null,null,null,null,null,null," ",null,null,null,"vo","vo","oo","vo",null,"ov",null,"vv",null,"oo",null,null,null,null,null,null,"vo","vo"]
["51. EndeligIndførselAdkomst ",null,null,null,"oo","vv",null,null,null,null,null,null,null,null,"vv",null,null,null,"vo","vo","vo","vo",null,null,null,null,null,"vo",null,null,null,null," "," ","vo","vo"]
["52. RespektAdkomst ",null,null,null,"vv","oo",null,null,null,null,null,null,null,null,"vv",null,null,null,"vv","vo",null,"vo",null,null,null,null,null,"vo",null,null,null,null,null,null,"vo","vo"]
["54. PåtegningAdkomst ",null,null,null,"vo","oo",null,null,null,null,null,null,null,null,"vv",null,null,null,"vo","vo","vo","vo"," ","vo",null,null,null,"vo",null,null,null,null,null,"vo","vo","vo"]
["55. AflysningBetingetSkøde ",null,null,null,"oo","oo",null,null,null,null,null,null,null,null,"vo",null,null,null,"vv","vo"," ","vo",null,"vo",null,null,null,"vv",null,null,null,null,null,null,"vo","vo"]
["56. RespektHæftelseFastEjendom",null,null,null,null,null,"oo",null,null,null,null,"vv",null,null,null,"vo",null,null,"vv","vo",null,"vo",null,null,null,null,null,"vv",null,null,null,null,null,null,"vo","vo"]
["57. RespekBil",null,null,null,null,null,"oo",null,null,null,null,"vv",null,null,null,"vo",null,null,"vv","vo",null,"vo",null,null,null,null,null,"vv",null,null,null,null,null,null,"vo","vo"]
["58. RespektPersonbogen",null,null,null,null,null,"oo",null,null,null,null,"vv",null,null,null,"vo",null,null,"vv","vo",null,"vo",null,null,null,null,null,"vv",null,null,null,null,null,null,"vo","vo"]
["59. RespektAndel",null,null,null,null,null,"oo",null,null,null,null,"vv",null,null,null,"vo",null,null,"vv","vo",null,"vo",null,null,null,null,null,"vv",null,null,null,null,null,null,"vo","vo"]
["6. AndenAdkomst"," ",null," ","ov","ov",null,null,null,null,null,null,null,null,"vo",null,null,null,"vo","vo","vo","vo",null,"vo",null,null,null,"oo",null,null,null,null," ","vo","vo","vo"]
["60. TransportHæftelseFastEjendom",null,null,null,null,null,"ov","vo","vv",null,null,null,null,null,null,"vo",null,null,"vv","vo",null,"vo",null,null,null,null,null,"vv",null,null,null,null,null,null,"vo","vo"]
["61. KreditorskifteBil",null,null,null,null,null,"ov","vo","vv",null,null,null,null,null,null,"vo",null,null,"vv","vo",null,"vo",null,null,null,null,null,"vv",null,null,null,null,null,null,"vo","vo"]
["62. KreditorskifteLøsøre",null,null,null,null,null,"ov","vo","vv",null,null,null,null,null,null,"vo",null,null,"vv","vo",null,"vo",null,null,null,null,null,"vv",null,null,null,null,null,null,"vo","vo"]
["63. KreditorskifteAndel",null,null,null,null,null,"ov","vo","vv",null,null,null,null,null,null,"vo",null,null,"vv","vo",null,"vo",null,null,null,null,null,"vv",null,null,null,null,null,null,"vo","vo"]
["64. DebitorskifteFastEjendom",null,null,null,null,null,"oo",null,"vo","vv","vo","vo","vo",null,"vv","vo"," ",null,"vv","vo",null,"vo",null,null,null,null,null,"vv",null,null,null,null,null,null,"vo","vo"]
["65. DebitorskifteBil",null,null,null,null,null,"oo",null,"vo","vv",null,"vo","vo",null,"vv","vo"," ",null,"vv","vo",null,"vo",null,null,null,null,null,"vv",null,null,null,null,null,null,"vo","vo"]
["66. DebitorskifteLøsøre",null,null,null,null,null,"oo",null,"oo","vv",null,"vo","vo",null,"vo","vo"," ",null,"vv","vo",null,"vo",null,"vo",null,null,null,"vv",null,null,null,null,null,null,"vo","vo"]
["67. DebitorskifteAndel",null,null,null,null,null,"oo",null,"vo","vv",null,"vo","vo",null,"vv","vo"," ",null,"vv","vo",null,"vo",null,null,null,null,null,"vo",null,null,null,null,null,null,"vo","vo"]
["68. NyMeddelelseshaverFastEjendom"," ",null," ",null,null,"oo",null,null,null,null," "," ",null,null,null,"vv","vv","vv","vo",null,"vo",null,null,null,null,null,"vv",null,null,null,null,null,null,"vo","vo"]
["69. NyMeddelelseshaverBil"," ",null," ",null,null,"oo",null,null,null,null," "," ",null,null,null,"vv","vv","vv","vo",null,"vo",null,null,null,null,null,"vv",null,null,null,null,null,null,"vo","vo"]
["7. PantebrevFastEjendom","vv"," ","vo",null,null,"ov",null,"oo",null,"vo","vo","vo","vo","vo",null,"vv",null,"vo","vo"," ","vo",null,"vo",null,null,null,"vv",null,null,null,null," ",null,"vo","vo"]
["70. NyMeddelelseshaverLøsøre"," ",null," ",null,null,"oo",null,null,null,null," "," ",null,null,null,"vv","vv","vv","vo",null,"vo",null,null,null,null,null,"vv",null,null,null,null,null,null,"vo","vo"]
["71. NyMeddelelseshaverAndel"," ",null," ",null,null,"oo",null,null,null,null," "," ",null,null,null,"vv","vv","vv","vo",null,"vo",null,null,null,null,null,"vv",null,null,null,null,null,null,"vo","vo"]
["72. NyFuldmagtshaverHæftelseFastEjendom","vv","vv","vo",null,null,"oo",null," ",null,null,null,null,null,null,"vo",null,null,"vv","vo",null,"vo",null,null,null,null,null,"vv",null,null,null,null,null,null,"vo","vo"]
["73. NyFuldmagtshaverBil ","vv","vv","vo",null,null,"oo",null," ",null,null,null,null,null,null,"vo",null,null,"vv","vo",null,"vo",null,null,null,null,null,"vv",null,null,null,null,null,null,"vo","vo"]
["74. NyFuldmagtshaverLøsøre","vv","vv","vo",null,null,"oo",null," ",null,null,null,null,null,null,"vo",null,null,"vv","vo",null,"vo",null,null,null,null,null,"vv",null,null,null,null,null,null,"vo","vo"]
["75. NyFuldmagtshaverAndel","vv","vv","vo",null,null,"oo",null," ",null,null,null,null,null,null,"vo",null,null,"vv","vo",null,"vo",null,null,null,null,null,"vv",null,null,null,null,null,null,"vo","vo"]
["76. VilkårsændringHæftelseFastEjendom",null,null,null,null,null,"oo",null,"oo",null,"vo","vo","vo",null,null,"vo",null,null,"vv","vo",null,"vo",null,"vo",null,null,null,"vv",null,null,null,null,null,null,"vo","vo"]
["77. VilkårsændringBil",null,null,null,null,null,"oo",null,"oo",null," ","vo","vo",null,null,"vo",null,null,"vv","vo",null,"vo",null,null,null,null,null,"vv",null,null,null,null,null,null,"vo","vo"]
["78. VilkårsændringLøsøre",null,null,null,null,null,"oo",null,"oo",null," ","vo","vo",null,null,"vo",null,null,"vv","vo",null,"vo",null,"vo",null,null,null,"vv",null,null,null,null,null,null,"vo","vo"]
["79. VilkårsændringAndel",null,null,null,null,null,"oo",null,"oo",null," ","vo","vo",null,null,"vo",null,null,"vv","vo",null,"vo",null,null,null,null,null,"vv",null,null,null,null,null,null,"vo","vo"]
["8. PantebrevBil","vv"," ","vo",null,null,"ov",null,"oo",null," ","vo","vo","vo","vo",null,"vv",null,"vo","vo"," ","vo",null,null,null,null,null,"vv",null,null,null,null," ",null,"vo","vo"]
["80. PåtegningHæftelseFastEjendom",null,"vv","vo",null,null,"oo",null,"oo",null,"vo",null,"vo",null,"vv","vo","vv","vv","vv","vo",null,"vo",null,"vo",null,null,null,"vv",null,null,null,null,null,null,"vo","vo"]
["81. PåtegningHæftelseBil","vv","vv","vo",null,null,"oo","vo","oo",null," ","vo","vo",null,"vo","vo",null,"vv","vv","vo",null,"vo",null,null,null,null,null,"vv",null,null,null,null,null,null,"vo","vo"]
["82. PåtegningHæftelsePersonbogen","vv","vv","vo",null,null,"oo","vo","oo",null," ","vo","vo",null,"vo","vo",null,"vv","vv","vo",null,"vo",null,"vo",null,null,null,"vv",null,null,null,null,null,null,"vo","vo"]
["83. PåtegningHæftelseAndel","vv","vv","vo",null,null,"oo","vo","oo",null," ","vo","vo",null,"vo","vo",null,"vv","vv","vo",null,"vo",null,null,null,null,null,"vv",null,null,null,null,null,null,"vo","vo"]
["84. ForhøjelseFastEjendom",null,null,null,null,null,null,null,"oo",null,"vo","vo","vo",null,"vo","vv",null,null,"vv","vo",null,"vo",null,"vo",null,null,null,"vv",null,null,null,null,null,null,"vo","vo"]
["85. ForhøjelseBil",null,null,null,null,null,null,null,"oo",null," ","vo","vo",null,"vo","vv",null,null,"vv","vo",null,"vo",null,null,null,null,null,"vv",null,null,null,null,null,null,"vo","vo"]
["86. ForhøjelsePersonbogen",null,null,null,null,null,null,null,"oo",null," ","vo","vo",null,"vo","vv",null,null,"vv","vo",null,"vo",null,"vo",null,null,null,"vv",null,null,null,null,null,null,"vo","vo"]
["87. ForhøjelseAndel",null,null,null,null,null,null,null,"oo",null," ","vo","vo",null,"vo","vv",null,null,"vv","vo",null,"vo",null,null,null,null,null,"vo",null,null,null,null,null,null,"vo","vo"]
["88. UdvidelseHæftelseFastEjendom",null,null,null,null,null,null,null,"oo",null,"vo"," ","vo",null,"vo","vv",null,null,"vv","vo",null,"vo",null,"vo",null,null,null,"vv",null,null,null,null,null,null,"vo","vo"]
["89. UdvidelseHæftelseBil",null,null,null,null,null,null,null,"oo",null," "," ","vo",null,"vo","vv",null,null,"vv","vo",null,"vo",null,null,null,null,null,"vv",null,null,null,null,null,null,"vo","vo"]
["9. PantebrevLøsøre","vv"," ","vo",null,null,"ov",null,"oo",null," ","vo","vo","vo","vo",null,"vv",null,"vo","vo"," ","vo",null,"vo",null,null,null,"vv",null,null,null,null," ",null,"vo","vo"]
["90. UdvidelseHæftelseLøsøre",null,null,null,null,null,null,null,"oo",null," "," ","vo",null,"vo","vv",null,null,"vv","vo",null,"vo",null,"vo",null,null,null,"vv",null,null,null,null,null,"vo",null,"vo"]
["91. UdvidelseHæftelseAndel",null,null,null,null,null,null,null,"oo",null," "," ","vo",null,"vo","vv",null,null,"vv","vo",null,"vo",null,null,null,null,null,"vo",null,null,null,null,null,null,"vo","vo"]
["92. NedlysningFastEjendom",null,null,null,null,null,"oo",null,null,null,null,"vo",null,null,null,"vo",null,null,"vv","vo",null,"vo",null,null,null,null,null,"vv",null,null,null,null,null,null,"vo","vo"]
["93. NedlysningBil",null,null,null,null,null,"oo",null,null,null,null,"vo",null,null,null,"vo",null,null,"vv","vo",null,"vo",null,null,null,null,null,"vv",null,null,null,null,null,null,"vo","vo"]
["94. NedlysningPersonbogen",null,null,null,null,null,"oo",null,null,null,null,"vo",null,null,null,"vo",null,null,"vv","vo",null,"vo",null,null,null,null,null,"vv",null,null,null,null,null,null,"vo","vo"]
["95. NedlysningAndel",null,null,null,null,null,"oo",null,null,null,null,"vo",null,null,null,"vo",null,null,"vv","vo",null,"vo",null,null,null,null,null,"vv",null,null,null,null,null,null,"vo","vo"]
["96. RelaksationHæftelseFastEjendom",null,null,null,null,null,"oo",null,null,null,null,"vo",null,null,null,"vo",null,null,"vv","vo",null,"vo",null,null,null,null,null,"vv",null,null,null,null,null,null,"vo","vo"]
["97. RelaksationBil",null,null,null,null,null,"oo",null,null,null,null,"vo",null,null,null,"vo",null,null,"vv","vo",null,"vo",null,null,null,null,null,"vv",null,null,null,null,null,null,"vo","vo"]
["98. RelaksationLøsøre",null,null,null,null,null,"oo",null,null,null,null,"vo",null,null,null,"vo",null,null,"vv","vo",null,"vo",null,null,null,null,null,"vv",null,null,null,null,null,"vo",null,"vo"]
["99. RelaksationAndel",null,null,null,null,null,"oo",null,null,null,null,"vo",null,null,null,"vo",null,null,"vv","vo",null,"vo",null,null,null,null,null,"vv",null,null,null,null,null,null,"vo","vo"]
["Andelsboligbog:"]
["BILBOG:"]
["Personbog:"]

{"sheet":"Vejledning","index":5,"n_rows":20,"n_cols":9,"rows_kept":20,"cut":false,"hidden":true,"merged":[]}
[]
[]
["Aktiver makro"]
["Ark 1","slettes"]
["Ark 1","indsættes fra kontroldigitalsignaturregistret"]
[]
["Version","opdateres med dato/ændring"]
["Brugerark","Opdater "]
["Gem og luk - kontroldigitalsignatur gemmes ikke."]
[]
["Ved ny ekstype skal man yderligere huske flg. når man ændre rollekataloget:"]
[]
["Dataark","Her indsættes ny ekspeditionstype nederst i den bog, hvor den hører til"]
["Dataark 2","Opdateres automatisk, når man går i funtionslinjen og klikker på \"formler\" og under navnestyring markere: ",null,null,null,null,null,null,"BOGEN"]
[null,null,null,null,null,null,null,null,"Klik nederst til højre på en lille rød pil"]
[null,null,null,null,null,null,null,null,"Herefter markeres alle dokumenttyperne i den valgte bog - til og med den nye ekstype"]
[null,null,null,null,null,null,null,null,"klik på ikonet pil ned"]
[null,null,null,null,null,null,null,null,"Luk"]
[null,null,null,null,null,null,null,null,"Gem"]
["Brugerark","Tjek at ny ekstype vises korrekt."]